{"text_format":"1","workbook":"xlsx","n_sheets":11,"sheets":["OHJE ja päivitystiedot","a. toimintaprosessit","b. tietojärjestelmät","c. tietovarannot","d. henk.tietovarannot","e. tietoturva_tietovarannot","f.tietoturva_henk.tietovarannot","1. AMS","2. Seloste","3. Tiedonhallinnan vastuut","Data"],"not_rendered":{"charts":0,"images":0,"macros":1,"external_links":0,"defined_names":2,"comments":5,"pivot_tables":0},"unopened":[],"bounds":{"document_bytes":16777216,"sheet_cells":100000,"rows_first":2000,"rows_last":500,"rows_between":2000,"halvings":0,"cell_chars":16384,"cell_head_chars":4096},"cells_cut":0,"cells_raw":0,"read":"whole","date_system":"1900"}

{"sheet":"OHJE ja päivitystiedot","index":0,"n_rows":11,"n_cols":5,"rows_kept":11,"cut":false,"hidden":false,"merged":[]}
[]
[]
[]
[null,"Värien selitteet:"]
[null,null,null,null," = Otsikko / ÄLÄ MUUTA"]
[null,null,null,null," = Otsikko tai selite / ÄLÄ MUUTA"]
[null,null,null,null," = Valitse alasvetovalikosta"]
[null,null,null,null," = TÄYTÄ TIEDOT OMAN ALUEESI OSALTA"]
[]
[null,"Päivitystiedot"]
[null,"Versio","Päivämäärä","Tekijä","Kommentit"]

{"sheet":"a. toimintaprosessit","index":1,"n_rows":24,"n_cols":20,"rows_kept":24,"cut":false,"hidden":false,"merged":[[1,5,1,7],[1,9,1,11],[1,13,1,15],[1,17,1,19],[1,0,2,0],[1,2,2,2],[1,3,2,3],[1,1,2,1]]}
[]
["a. 0 Nimeä tehtävä, johon toimintaprosessi kuuluu (Vapaaehtoinen) ","a.1 Toimintaprosessin  nimi (nimike)","a.2 Toimintaprosessista vastaavan viranomaisen nimi","a.3 Prosessin tarkoitus",null,"a.4 Prosessin sidokset muihin prosesseihin",null,null,null,"a.4 Prosessin sidokset muihin prosesseihin",null,null,null,"a.4 Prosessin sidokset muihin prosesseihin",null,null,null,"a.4 Prosessin sidokset muihin prosesseihin"]
[null,null,null,null,null,"a.4.1 Prosessi, jolla on sidos","a.4.2 Sidos: prosessiin vai prosessista?","a.4.3 Kuvaus sidoksesta",null,"a.4.1 Prosessi, jolla sidos","a.4.2 Sidos: prosessiin vai prosessista?","a.4.3 Kuvaus sidoksesta",null,"a.4.1 Prosessi, jolla sidos","a.4.2 Sidos: prosessiin vai prosessista?","a.4.3 Kuvaus sidoksesta",null,"a.4.1 Prosessi, jolla sidos","a.4.2 Sidos: prosessiin vai prosessista?","a.4.3 Kuvaus sidoksesta"]
[null,null,null,null,null," --Valitse---"," --Valitse---",null,null," --Valitse---"," --Valitse---",null,null," --Valitse---"," --Valitse---",null,null," --Valitse---"," --Valitse---"]
[null,null,null,null,null," --Valitse---"," --Valitse---",null,null," --Valitse---"," --Valitse---",null,null," --Valitse---"," --Valitse---",null,null," --Valitse---"," --Valitse---"]
[null,null,null,null,null," --Valitse---"," --Valitse---",null,null," --Valitse---"," --Valitse---",null,null," --Valitse---"," --Valitse---",null,null," --Valitse---"," --Valitse---"]
[null,null,null,null,null," --Valitse---"," --Valitse---",null,null," --Valitse---"," --Valitse---",null,null," --Valitse---"," --Valitse---",null,null," --Valitse---"," --Valitse---"]
[null,null,null,null,null," --Valitse---"," --Valitse---",null,null," --Valitse---"," --Valitse---",null,null," --Valitse---"," --Valitse---",null,null," --Valitse---"," --Valitse---"]
[null,null,null,null,null," --Valitse---"," --Valitse---",null,null," --Valitse---"," --Valitse---",null,null," --Valitse---"," --Valitse---",null,null," --Valitse---"," --Valitse---"]
[null,null,null,null,null," --Valitse---"," --Valitse---",null,null," --Valitse---"," --Valitse---",null,null," --Valitse---"," --Valitse---",null,null," --Valitse---"," --Valitse---"]
[null,null,null,null,null," --Valitse---"," --Valitse---",null,null," --Valitse---"," --Valitse---",null,null," --Valitse---"," --Valitse---",null,null," --Valitse---"," --Valitse---"]
[null,null,null,null,null," --Valitse---"," --Valitse---",null,null," --Valitse---"," --Valitse---"," ",null," --Valitse---"," --Valitse---"," ",null," --Valitse---"," --Valitse---"," "]
[null,null,null,null,null," --Valitse---"," --Valitse---",null,null," --Valitse---"," --Valitse---"," ",null," --Valitse---"," --Valitse---"," ",null," --Valitse---"," --Valitse---"," "]
[" "," "," "," ",null," --Valitse---"," --Valitse---"," ",null," --Valitse---"," --Valitse---"," ",null," --Valitse---"," --Valitse---"," ",null," --Valitse---"," --Valitse---"," "]
[" "," "," "," ",null," --Valitse---"," --Valitse---"," ",null," --Valitse---"," --Valitse---"," ",null," --Valitse---"," --Valitse---"," ",null," --Valitse---"," --Valitse---"," "]
[" "," "," "," ",null," --Valitse---"," --Valitse---"," ",null," --Valitse---"," --Valitse---"," ",null," --Valitse---"," --Valitse---"," ",null," --Valitse---"," --Valitse---"," "]
[" "," "," "," ",null," --Valitse---"," --Valitse---"," ",null," --Valitse---"," --Valitse---"," ",null," --Valitse---"," --Valitse---"," ",null," --Valitse---"," --Valitse---"," "]
[" "," "," "," ",null," --Valitse---"," --Valitse---"," ",null," --Valitse---"," --Valitse---"," ",null," --Valitse---"," --Valitse---"," ",null," --Valitse---"," --Valitse---"," "]
[" "," "," "," ",null," --Valitse---"," --Valitse---"," ",null," --Valitse---"," --Valitse---"," ",null," --Valitse---"," --Valitse---"," ",null," --Valitse---"," --Valitse---"," "]
[" "," "," "," ",null," --Valitse---"," --Valitse---"," ",null," --Valitse---"," --Valitse---"," ",null," --Valitse---"," --Valitse---"," ",null," --Valitse---"," --Valitse---"," "]
[" "," "," "," ",null," --Valitse---"," --Valitse---"," ",null," --Valitse---"," --Valitse---"," ",null," --Valitse---"," --Valitse---"," ",null," --Valitse---"," --Valitse---"," "]
[" "," "," "," ",null," --Valitse---"," --Valitse---"," ",null," --Valitse---"," --Valitse---"," ",null," --Valitse---"," --Valitse---"," ",null," --Valitse---"," --Valitse---"," "]
[" "," "," "," ",null," --Valitse---"," --Valitse---"," ",null," --Valitse---"," --Valitse---"," ",null," --Valitse---"," --Valitse---"," ",null," --Valitse---"," --Valitse---"," "]
[" ",null," "," ",null," --Valitse---"," --Valitse---"," ",null," --Valitse---"," --Valitse---"," ",null," --Valitse---"," --Valitse---"," ",null," --Valitse---"," --Valitse---"," "]

{"sheet":"b. tietojärjestelmät","index":2,"n_rows":25,"n_cols":28,"rows_kept":25,"cut":false,"hidden":false,"merged":[[2,9,3,9],[2,10,3,10],[2,11,3,11],[1,5,1,7],[1,9,1,11],[2,23,3,23],[1,21,1,23],[1,25,1,27],[2,21,3,21],[2,22,3,22],[2,25,3,25],[2,26,3,26],[2,27,3,27],[2,13,3,13],[2,14,3,14],[2,18,3,18],[2,19,3,19],[1,13,1,15],[1,17,1,19],[2,15,3,15],[2,17,3,17],[1,1,3,1],[1,2,3,2],[1,3,3,3],[2,6,3,6],[2,7,3,7],[2,5,3,5]]}
[]
[null,"b.1 Tietojärjestelmän nimi (nimike)","b.2 Tietojärjestelmästä vastaava viranomainen ","b.3 Tietojärjestelmän käyttötarkoitukset",null,"b.4 Tiedot liittymistä ja tiedonsiirtotavoista sisäisiin tietojärjestelmiin ",null,null,null,"b.5 Tiedot liittymistä ja tiedonsiirtotavoista ulkoisiin tietojärjestelmiin ",null,null,null,"b.4 Tiedot liittymistä ja tiedonsiirtotavoista muihin sisäisiin tietojärjestelmiin ",null,null,null,"b.5 Tiedot liittymistä ja tiedonsiirtotavoista ulkoisiin tietojärjestelmiin ",null,null,null,"b.4 Tiedot liittymistä ja tiedonsiirtotavoista muihin sisäisiin tietojärjestelmiin ",null,null,null,"b.5 Tiedot liittymistä ja tiedonsiirtotavoista ulkoisiin tietojärjestelmiin "]
[null,null,null,null,null,"b.4.1 Liittymät sisäisiin tietojärjestelmiin, valitaan alasvetovalikosta","b.4.2 Siirrettävät tiedot","b.4.3 Tieto liittymissä käytettävistä tiedonsiirtotavoista",null,"b.5.1 Ulkoisen tietojärjestelmän nimi (nimike)","b.5.2 Siirrettävät tiedot","b.5.3 Tieto liittymissä käytettävistä tiedonsiirtotavoista",null,"b.4.1 Liittymät muihin sisäisiin tietojärjestelmiin, valitaan alasvetovalikosta","b.4.2 Siirrettävät tiedot","b.4.3 Tieto liittymissä käytettävistä tiedonsiirtotavoista",null,"b.5.1 Ulkoisen tietojärjestelmän nimi (nimike)","b.5.2 Siirrettävät tiedot","b.5.3 Tieto liittymissä käytettävistä tiedonsiirtotavoista",null,"b.4.1 Liittymät muihin sisäisiin tietojärjestelmiin, valitaan alasvetovalikosta","b.4.2 Siirrettävät tiedot","b.4.3 Tieto liittymissä käytettävistä tiedonsiirtotavoista",null,"b.5.1 Ulkoisen tietojärjestelmän nimi (nimike)","b.5.2 Siirrettävät tiedot","b.5.3 Tieto liittymissä käytettävistä tiedonsiirtotavoista"]
[]
[null,null,null,null,null," --Valitse--",null,null,null,null,null,null,null," --Valitse--",null,null,null,null,null,null,null," --Valitse--"]
[null,null,null,null,null," --Valitse--",null,null,null,null,null,null,null," --Valitse--",null,null,null,null,null,null,null," --Valitse--"]
[null,null,null,null,null," --Valitse--",null,null,null,null,null,null,null," --Valitse--",null,null,null,null,null,null,null," --Valitse--"]
[null,null,null,null,null," --Valitse--",null,null,null,null,null,null,null," --Valitse--",null,null,null,null,null,null,null," --Valitse--"]
[null,null,null,null,null," --Valitse--",null,null,null,null,null,null,null," --Valitse--",null,null,null,null,null,null,null," --Valitse--"]
[null,null,null,null,null," --Valitse--",null,null,null,null,null,null,null," --Valitse--",null,null,null,null,null,null,null," --Valitse--"]
[null," ",null,null,null," --Valitse--",null,null,null,null,null,null,null," --Valitse--",null,null,null,null,null,null,null," --Valitse--"]
[null," ",null,null,null," --Valitse--",null,null,null,null,null,null,null," --Valitse--",null,null,null,null,null,null,null," --Valitse--"]
[null," "," ",null,null," --Valitse--",null,null,null,null,null,null,null," --Valitse--",null,null,null,null,null,null,null," --Valitse--"]
[null," "," ",null,null," --Valitse--",null,null,null,null,null,null,null," --Valitse--",null,null,null,null,null,null,null," --Valitse--"]
[null," "," ",null,null," --Valitse--",null,null,null,null,null,null,null," --Valitse--",null,null,null,null,null,null,null," --Valitse--"]
[null," "," ",null,null," --Valitse--",null,null,null,null,null,null,null," --Valitse--",null,null,null,null,null,null,null," --Valitse--"]
[null," "," ",null,null," --Valitse--",null,null,null,null,null,null,null," --Valitse--",null,null,null,null,null,null,null," --Valitse--"]
[null," "," ",null,null," --Valitse--",null,null,null,null,null,null,null," --Valitse--",null,null,null,null,null,null,null," --Valitse--"]
[null," "," ",null,null," --Valitse--",null,null,null,null,null,null,null," --Valitse--",null,null,null,null,null,null,null," --Valitse--"]
[null," "," ",null,null," --Valitse--",null,null,null,null,null,null,null," --Valitse--",null,null,null,null,null,null,null," --Valitse--"]
[null," "," ",null,null," --Valitse--",null,null,null,null,null,null,null," --Valitse--",null,null,null,null,null,null,null," --Valitse--"]
[null," "," ",null,null," --Valitse--",null,null,null,null,null,null,null," --Valitse--",null,null,null,null,null,null,null," --Valitse--"]
[null," "," ",null,null," --Valitse--",null,null,null,null,null,null,null," --Valitse--",null,null,null,null,null,null,null," --Valitse--"]
[null," "," ",null,null," --Valitse--",null,null,null,null,null,null,null," --Valitse--",null,null,null,null,null,null,null," --Valitse--"]
[null," "," ",null,null," --Valitse--",null,null,null,null,null,null,null," --Valitse--",null,null,null,null,null,null,null," --Valitse--"]

{"sheet":"c. tietovarannot","index":3,"n_rows":47,"n_cols":30,"rows_kept":47,"cut":false,"hidden":false,"merged":[[1,1,1,5],[1,24,1,29],[1,6,1,7],[1,15,1,16],[1,12,1,13],[1,9,1,10],[1,18,1,19],[1,21,1,22]]}
[]
[null,"c.1 Kuvaus tietovarannosta",null,null,null,null,"c.2 Kuvaus tietovarannon sidoksista toimintaprosesseihin",null,null,"Kuvaus tietovarannon sidoksista toimintaprosesseihin",null,null,"Kuvaus tietovarannon sidoksista toimintaprosesseihin",null,null,"c.3 Kuvaus tietovarannon sidoksista  tietojärjestelmiin",null,null,"Kuvaus tietovarannon sidoksista  tietojärjestelmiin",null,null,"Kuvaus tietovarannon sidoksista  tietojärjestelmiin",null,null,"c.4 Tietovarannon tietojen säilyttäminen, arkistointi ja hävittäminen"]
[null,"c.1.1 Tietovarannon nimi (nimike)","c.1.2 Tietovarannosta vastaava viranomainen","c.1.3 Tietovarannon käyttötarkoitus","c.1.4 Keskeiset tietoaineistot tietovarannossa","c.1.5 Luovutuskohteet: minne tietoja luovutetaan?","c.2.1 Sidos toimintaprosesseihin","c.2.2 Kuvaus sidoksesta",null,"Sidos prosesseihin","Kuvaus sidoksesta",null,"Sidos prosesseihin","Kuvaus sidoksesta",null,"c.3.1 Sidos tietojärjestelmiin ","c.3.2 Kuvaus sidoksesta",null,"Sidos tieto-järjestelmiin ","Kuvaus sidoksesta",null,"Sidos tieto-järjestelmiin ","Kuvaus sidoksesta",null,"c.4.1 Säilytysaika","c.4.2 Säilytysajan peruste","c.4.3 Säilytystapa","c.4.4 Siirretäänkö säilytysajan jälkeen arkistoon?","c.4.5 Arkistointitapa ","c.4.6 Tietoaineiston hävitystapa, mikäli sitä ei arkistoida pysyvästi?"]
[null,null,null,null,null,null," --Valitse--",null,null," --Valitse--",null,null," --Valitse--",null,null," --Valitse--",null,null," --Valitse--",null,null," --Valitse--",null,null,"2 vuotta","Laki","Sähköisesti","Ei","Sähköisesti","Ylikirjoitetaan"]
[null,null,null,null,null,null," --Valitse--",null,null," --Valitse--",null,null," --Valitse--",null,null," --Valitse--",null,null," --Valitse--",null,null," --Valitse--",null,null,"10 vuotta","Laki","Paperilla","Kyllä","Paperilla","Muulla tavoin tietoturvallisesti"]
[null,null,null,null,null,null," --Valitse--",null,null," --Valitse--",null,null," --Valitse--",null,null," --Valitse--",null,null," --Valitse--",null,null," --Valitse--",null,null,null,null," --Valitse--"," --Valitse--"," --Valitse--","Silputaan"]
[null,null,null,null,null,null," --Valitse--",null,null," --Valitse--",null,null," --Valitse--",null,null," --Valitse--",null,null," --Valitse--",null,null," --Valitse--",null,null,null,null," --Valitse--"," --Valitse--"," --Valitse--"," --Valitse--"]
[null,null,null,null,null,null," --Valitse--",null,null," --Valitse--",null,null," --Valitse--",null,null," --Valitse--",null,null," --Valitse--",null,null," --Valitse--",null,null,null,null," --Valitse--"," --Valitse--"," --Valitse--"," --Valitse--"]
[null,null,null,null,null,null," --Valitse--",null,null," --Valitse--",null,null," --Valitse--",null,null," --Valitse--",null,null," --Valitse--",null,null," --Valitse--",null,null,null,null," --Valitse--"," --Valitse--"," --Valitse--"," --Valitse--"]
[null,null,null,null,null,null," --Valitse--",null,null," --Valitse--",null,null," --Valitse--",null,null," --Valitse--",null,null," --Valitse--",null,null," --Valitse--",null,null,null,null," --Valitse--"," --Valitse--"," --Valitse--"," --Valitse--"]
[null,null,null,null,null,null," --Valitse--",null,null," --Valitse--",null,null," --Valitse--",null,null," --Valitse--",null,null," --Valitse--",null,null," --Valitse--",null,null,null,null," --Valitse--"," --Valitse--"," --Valitse--"," --Valitse--"]
[null,null,null,null,null,null," --Valitse--",null,null," --Valitse--",null,null," --Valitse--",null,null," --Valitse--",null,null," --Valitse--",null,null," --Valitse--",null,null,null,null," --Valitse--"," --Valitse--"," --Valitse--"," --Valitse--"]
[null,null,null,null,null,null," --Valitse--",null,null," --Valitse--",null,null," --Valitse--",null,null," --Valitse--",null,null," --Valitse--",null,null," --Valitse--",null,null,null,null," --Valitse--"," --Valitse--"," --Valitse--"," --Valitse--"]
[null,null,null,null,null,null," --Valitse--",null,null," --Valitse--",null,null," --Valitse--",null,null," --Valitse--",null,null," --Valitse--",null,null," --Valitse--",null,null,null,null," --Valitse--"," --Valitse--"," --Valitse--"," --Valitse--"]
[null,null,null,null,null,null," --Valitse--",null,null," --Valitse--",null,null," --Valitse--",null,null," --Valitse--",null,null," --Valitse--",null,null," --Valitse--",null,null,null,null," --Valitse--"," --Valitse--"," --Valitse--"," --Valitse--"]
[null,null," ",null,null,null," --Valitse--",null,null," --Valitse--"," ",null," --Valitse--"," ",null," --Valitse--",null,null," --Valitse--",null,null," --Valitse--",null,null,null,null," --Valitse--"," --Valitse--"," --Valitse--"," --Valitse--"]
[null,null," ",null,null,null," --Valitse--",null,null," --Valitse--"," ",null," --Valitse--"," ",null," --Valitse--",null,null," --Valitse--",null,null," --Valitse--",null,null,null,null," --Valitse--"," --Valitse--"," --Valitse--"," --Valitse--"]
[null,null," ",null,null,null," --Valitse--",null,null," --Valitse--"," ",null," --Valitse--"," ",null," --Valitse--",null,null," --Valitse--",null,null," --Valitse--",null,null,null,null," --Valitse--"," --Valitse--"," --Valitse--"," --Valitse--"]
[null,null," ",null,null,null," --Valitse--"," ",null," --Valitse--"," ",null," --Valitse--"," ",null," --Valitse--",null,null," --Valitse--",null,null," --Valitse--",null,null,null,null," --Valitse--"," --Valitse--"," --Valitse--"," --Valitse--"]
[null,null," ",null,null,null," --Valitse--"," ",null," --Valitse--"," ",null," --Valitse--"," ",null," --Valitse--",null,null," --Valitse--",null,null," --Valitse--",null,null,null,null," --Valitse--"," --Valitse--"," --Valitse--"," --Valitse--"]
[null,null," ",null,null,null," --Valitse--"," ",null," --Valitse--"," ",null," --Valitse--"," ",null," --Valitse--",null,null," --Valitse--",null,null," --Valitse--",null,null,null,null," --Valitse--"," --Valitse--"," --Valitse--"," --Valitse--"]
[null,null," ",null,null,null," --Valitse--"," ",null," --Valitse--"," ",null," --Valitse--"," ",null," --Valitse--",null,null," --Valitse--",null,null," --Valitse--",null,null,null,null," --Valitse--"," --Valitse--"," --Valitse--"," --Valitse--"]
[null,null," ",null,null,null," --Valitse--"," ",null," --Valitse--"," ",null," --Valitse--"," ",null," --Valitse--",null,null," --Valitse--",null,null," --Valitse--",null,null,null,null," --Valitse--"," --Valitse--"," --Valitse--"," --Valitse--"]
[null,null," ",null,null,null," --Valitse--"," ",null," --Valitse--"," ",null," --Valitse--"," ",null," --Valitse--",null,null," --Valitse--",null,null," --Valitse--",null,null,null,null," --Valitse--"," --Valitse--"," --Valitse--"," --Valitse--"]
[null," "," ",null,null,null," --Valitse--"," ",null," --Valitse--"," ",null," --Valitse--"," ",null," --Valitse--",null,null," --Valitse--",null,null," --Valitse--",null,null,null,null," --Valitse--"," --Valitse--"," --Valitse--"," --Valitse--"]
[null," "," ",null,null,null," --Valitse--"," ",null," --Valitse--"," ",null," --Valitse--"," ",null," --Valitse--",null,null," --Valitse--",null,null," --Valitse--",null,null,null,null," --Valitse--"," --Valitse--"," --Valitse--"," --Valitse--"]
[null," "," ",null,null,null," --Valitse--"," ",null," --Valitse--"," ",null," --Valitse--"," ",null," --Valitse--",null,null," --Valitse--",null,null," --Valitse--",null,null,null,null," --Valitse--"," --Valitse--"," --Valitse--"," --Valitse--"]
[null," "," ",null,null,null," --Valitse--"," ",null," --Valitse--"," ",null," --Valitse--"," ",null," --Valitse--",null,null," --Valitse--",null,null," --Valitse--",null,null,null,null," --Valitse--"," --Valitse--"," --Valitse--"," --Valitse--"]
[null," "," ",null,null,null," --Valitse--"," ",null," --Valitse--"," ",null," --Valitse--"," ",null," --Valitse--",null,null," --Valitse--",null,null," --Valitse--",null,null,null,null," --Valitse--"," --Valitse--"," --Valitse--"," --Valitse--"]
[null," "," ",null,null,null," --Valitse--"," ",null," --Valitse--"," ",null," --Valitse--"," ",null," --Valitse--",null,null," --Valitse--",null,null," --Valitse--",null,null,null,null," --Valitse--"," --Valitse--"," --Valitse--"," --Valitse--"]
[null," "," ",null,null,null," --Valitse--"," ",null," --Valitse--"," ",null," --Valitse--"," ",null," --Valitse--",null,null," --Valitse--",null,null," --Valitse--",null,null,null,null," --Valitse--"," --Valitse--"," --Valitse--"," --Valitse--"]
[null," "," ",null,null,null," --Valitse--"," ",null," --Valitse--"," ",null," --Valitse--"," ",null," --Valitse--",null,null," --Valitse--",null,null," --Valitse--",null,null,null,null," --Valitse--"," --Valitse--"," --Valitse--"," --Valitse--"]
[null," "," ",null,null,null," --Valitse--"," ",null," --Valitse--"," ",null," --Valitse--"," ",null," --Valitse--",null,null," --Valitse--",null,null," --Valitse--",null,null,null,null," --Valitse--"," --Valitse--"," --Valitse--"," --Valitse--"]
[null," "," ",null,null,null," --Valitse--"," ",null," --Valitse--"," ",null," --Valitse--"," ",null," --Valitse--",null,null," --Valitse--",null,null," --Valitse--",null,null,null,null," --Valitse--"," --Valitse--"," --Valitse--"," --Valitse--"]
[null," "," ",null,null,null," --Valitse--"," ",null," --Valitse--"," ",null," --Valitse--"," ",null," --Valitse--",null,null," --Valitse--",null,null," --Valitse--",null,null,null,null," --Valitse--"," --Valitse--"," --Valitse--"," --Valitse--"]
[null," "," ",null,null,null," --Valitse--"," ",null," --Valitse--"," ",null," --Valitse--"," ",null," --Valitse--",null,null," --Valitse--",null,null," --Valitse--",null,null,null,null," --Valitse--"," --Valitse--"," --Valitse--"," --Valitse--"]
[null," "," ",null,null,null," --Valitse--"," ",null," --Valitse--"," ",null," --Valitse--"," ",null," --Valitse--",null,null," --Valitse--",null,null," --Valitse--",null,null,null,null," --Valitse--"," --Valitse--"," --Valitse--"," --Valitse--"]
[null," "," ",null,null,null," --Valitse--"," ",null," --Valitse--"," ",null," --Valitse--"," ",null," --Valitse--",null,null," --Valitse--",null,null," --Valitse--",null,null,null,null," --Valitse--"," --Valitse--"," --Valitse--"," --Valitse--"]
[null," "," ",null,null,null," --Valitse--"," ",null," --Valitse--"," ",null," --Valitse--"," ",null," --Valitse--",null,null," --Valitse--",null,null," --Valitse--",null,null,null,null," --Valitse--"," --Valitse--"," --Valitse--"," --Valitse--"]
[null," "," ",null,null,null," --Valitse--"," ",null," --Valitse--"," ",null," --Valitse--"," ",null," --Valitse--",null,null," --Valitse--",null,null," --Valitse--",null,null,null,null," --Valitse--"," --Valitse--"," --Valitse--"," --Valitse--"]
[null," "," ",null,null,null," --Valitse--"," ",null," --Valitse--"," ",null," --Valitse--"," ",null," --Valitse--",null,null," --Valitse--",null,null," --Valitse--",null,null,null,null," --Valitse--"," --Valitse--"," --Valitse--"," --Valitse--"]
[null," "," ",null,null,null," --Valitse--"," ",null," --Valitse--"," ",null," --Valitse--"," ",null," --Valitse--",null,null," --Valitse--",null,null," --Valitse--",null,null,null,null," --Valitse--"," --Valitse--"," --Valitse--"," --Valitse--"]
[null," "," ",null,null,null," --Valitse--"," ",null," --Valitse--"," ",null," --Valitse--"," ",null," --Valitse--",null,null," --Valitse--",null,null," --Valitse--",null,null,null,null," --Valitse--"," --Valitse--"," --Valitse--"," --Valitse--"]
[null," "," ",null,null,null," --Valitse--"," ",null," --Valitse--"," ",null," --Valitse--"," ",null," --Valitse--",null,null," --Valitse--",null,null," --Valitse--",null,null,null,null," --Valitse--"," --Valitse--"," --Valitse--"," --Valitse--"]
[null," "," ",null,null,null," --Valitse--"," ",null," --Valitse--"," ",null," --Valitse--"," ",null," --Valitse--",null,null," --Valitse--",null,null," --Valitse--",null,null,null,null," --Valitse--"," --Valitse--"," --Valitse--"," --Valitse--"]
[null," "," ",null,null,null," --Valitse--"," ",null," --Valitse--"," ",null," --Valitse--"," ",null," --Valitse--",null,null," --Valitse--",null,null," --Valitse--",null,null,null,null," --Valitse--"," --Valitse--"," --Valitse--"," --Valitse--"]
[null," "," ",null,null,null," --Valitse--"," ",null," --Valitse--"," ",null," --Valitse--"," ",null," --Valitse--",null,null," --Valitse--",null,null," --Valitse--",null,null,null,null," --Valitse--"," --Valitse--"," --Valitse--"," --Valitse--"]

{"sheet":"d. henk.tietovarannot","index":4,"n_rows":47,"n_cols":39,"rows_kept":47,"cut":false,"hidden":false,"merged":[[1,33,1,38],[1,20,1,31],[1,17,1,18],[1,1,2,1],[1,2,1,3],[1,5,1,6],[1,8,1,9],[1,11,1,12],[1,14,1,15]]}
[]
[null,"d.1 Henkilötietovarannon nimi (nimike)","d.2 Kuvaus henkilötietovarannon sidoksista toimintaprosesseihin",null,null,"Kuvaus tietovarannon sidoksista toimintaprosesseihin",null,null,"Kuvaus tietovarannon sidoksista toimintaprosesseihin",null,null,"d.3 Kuvaus henkilötietovarannon sidoksista  tietojärjestelmiin",null,null,"Kuvaus tietovarannon sidoksista  tietojärjestelmiin",null,null,"Kuvaus tietovarannon sidoksista  tietojärjestelmiin",null,null,"d.4 Seloste käsittelytoimista -tiedot",null,null,null,null,null,null,null,null,null,null,null,null,"d.5 Henkilötietovarannon tietojen säilyttäminen, arkistointi ja hävittäminen"]
[null,null,"d.2.1 Sidos toimintaprosesseihin","d.2.2 Kuvaus sidoksesta",null,"Sidos prosesseihin","Kuvaus sidoksesta",null,"Sidos prosesseihin","Kuvaus sidoksesta",null,"d.3.1 Sidos tieto-järjestelmiin ","d.3.2 Kuvaus sidoksesta",null,"Sidos tieto-järjestelmiin ","Kuvaus sidoksesta",null,"Sidos tieto-järjestelmiin ","Kuvaus sidoksesta",null,"d.4.1 Rekisterinpitäjä","d.4.2 Rekisterinpitäjän edustaja","d.4.3 Käsittelyn peruste ja tehtävä, johon tietoja käsitellään","d.4.4 Käsittelyn tarkoitus","d.4.5 (Tarvittaessa) yhteisrekisterinpitäjä ja tämän yhteystiedot ","d.4.6 Rekisteröityjen ryhmät","d.4.7 Henkilötietojen ryhmät","d.4.8 Vastaanottajaryhmät","d.4.9 Viittaus (mahdolliseen) henkilötietojen käsittelijän kanssa solmittuun henkilötietojen käsittelyä koskevaan sopimukseen","d.4.10 Kolmannet maat ja kansainväliset järjestöt, joihin tietoja siirretään tai tieto siitä, ettei henkilötietoja siirretä kolmansiin maihin tai kansainvälisiin järjestöihin","d.4.11 Asianmukaisia suojatoimia koskeva dokumentaatio, jos henkilötietoja siirretään kolmansiin maihin tai kansainvälisiin järjestöihin tietosuoja-asetuksen 49 artiklan 1 kohdan toisessa alakohdassa tarkoitetulla siirrolla","d.4.12 Henkilötietovarannon ylläpitoon osallistuvat muut tahot ",null,"d.5.1 Säilytysaika","d.5.2 Säilytysajan peruste","d.5.3 Säilytystapa","d.5.4 Siirretäänkö säilytysajan jälkeen arkistoon?","d.5.5 Arkistointitapa ","d.5.6 Henkilötietojen hävitystapa, mikäli ei arkistoida pysyvästi?"]
[null,null," --Valitse--",null,null,"AB1",null,null," --Valitse--",null,null," --Valitse--",null,null," --Valitse--",null,null," --Valitse--",null,null,null,null,null,null,null,null,null,null,null,null,null,null,null,null,null,"Sähköisesti","Ei"," --Valitse--","Ylikirjoitetaan"]
[null,null," --Valitse--",null,null," --Valitse--",null,null," --Valitse--",null,null," --Valitse--",null,null," --Valitse--",null,null," --Valitse--",null,null,null,null,null,null,null,null,null,null,null,null,null,null,null,null,null,"Paperilla","Kyllä"," --Valitse--","Silputaan"]
[null,null," --Valitse--",null,null," --Valitse--",null,null," --Valitse--",null,null," --Valitse--",null,null," --Valitse--",null,null," --Valitse--",null,null,null,null,null,null,null,null,null,null,null,null,null,null,null,null,null," --Valitse--"," --Valitse--"," --Valitse--","Muulla tavoin tietoturvallisesti"]
[null,null," --Valitse--",null,null," --Valitse--",null,null," --Valitse--",null,null," --Valitse--",null,null," --Valitse--",null,null," --Valitse--",null,null,null,null,null,null,null,null,null,null,null,null,null,null,null,null,null," --Valitse--"," --Valitse--"," --Valitse--"," --Valitse--"]
[null,null," --Valitse--",null,null," --Valitse--",null,null," --Valitse--",null,null," --Valitse--",null,null," --Valitse--",null,null," --Valitse--",null,null,null,null,null,null,null,null,null,null,null,null,null,null,null,null,null," --Valitse--"," --Valitse--"," --Valitse--"," --Valitse--"]
[null,null," --Valitse--",null,null," --Valitse--",null,null," --Valitse--",null,null," --Valitse--",null,null," --Valitse--",null,null," --Valitse--",null,null,null,null,null,null,null,null,null,null,null,null,null,null,null,null,null," --Valitse--"," --Valitse--"," --Valitse--"," --Valitse--"]
[null,null," --Valitse--",null,null," --Valitse--",null,null," --Valitse--",null,null," --Valitse--",null,null," --Valitse--",null,null," --Valitse--",null,null,null,null,null,null,null,null,null,null,null,null,null,null,null,null,null," --Valitse--"," --Valitse--"," --Valitse--"," --Valitse--"]
[null,null," --Valitse--",null,null," --Valitse--",null,null," --Valitse--",null,null," --Valitse--",null,null," --Valitse--",null,null," --Valitse--",null,null,null,null,null,null,null,null,null,null,null,null,null,null,null,null,null," --Valitse--"," --Valitse--"," --Valitse--"," --Valitse--"]
[null,null," --Valitse--",null,null," --Valitse--",null,null," --Valitse--",null,null," --Valitse--",null,null," --Valitse--",null,null," --Valitse--",null,null,null,null,null,null,null,null,null,null,null,null,null,null,null,null,null," --Valitse--"," --Valitse--"," --Valitse--"," --Valitse--"]
[null,null," --Valitse--",null,null," --Valitse--",null,null," --Valitse--",null,null," --Valitse--",null,null," --Valitse--",null,null," --Valitse--",null,null,null,null,null,null,null,null,null,null,null,null,null,null,null,null,null," --Valitse--"," --Valitse--"," --Valitse--"," --Valitse--"]
[null,null," --Valitse--",null,null," --Valitse--",null,null," --Valitse--",null,null," --Valitse--",null,null," --Valitse--",null,null," --Valitse--",null,null,null,null,null,null,null,null,null,null,null,null,null,null,null,null,null," --Valitse--"," --Valitse--"," --Valitse--"," --Valitse--"]
[null,null," --Valitse--",null,null," --Valitse--",null,null," --Valitse--",null,null," --Valitse--",null,null," --Valitse--",null,null," --Valitse--",null,null,null,null,null,null,null,null,null,null,null,null,null,null,null,null,null," --Valitse--"," --Valitse--"," --Valitse--"," --Valitse--"]
[null,null," --Valitse--"," ",null," --Valitse--"," ",null," --Valitse--"," ",null," --Valitse--",null,null," --Valitse--",null,null," --Valitse--",null,null,null,null,null,null,null,null,null,null,null,null,null,null,null,null,null," --Valitse--"," --Valitse--"," --Valitse--"," --Valitse--"]
[null,null," --Valitse--"," ",null," --Valitse--"," ",null," --Valitse--"," ",null," --Valitse--",null,null," --Valitse--",null,null," --Valitse--",null,null,null,null,null,null,null,null,null,null,null,null,null,null,null,null,null," --Valitse--"," --Valitse--"," --Valitse--"," --Valitse--"]
[null,null," --Valitse--"," ",null," --Valitse--"," ",null," --Valitse--"," ",null," --Valitse--",null,null," --Valitse--",null,null," --Valitse--",null,null,null,null,null,null,null,null,null,null,null,null,null,null,null,null,null," --Valitse--"," --Valitse--"," --Valitse--"," --Valitse--"]
[null,null," --Valitse--"," ",null," --Valitse--"," ",null," --Valitse--"," ",null," --Valitse--",null,null," --Valitse--",null,null," --Valitse--",null,null,null,null,null,null,null,null,null,null,null,null,null,null,null,null,null," --Valitse--"," --Valitse--"," --Valitse--"," --Valitse--"]
[null,null," --Valitse--"," ",null," --Valitse--"," ",null," --Valitse--"," ",null," --Valitse--",null,null," --Valitse--",null,null," --Valitse--",null,null,null,null,null,null,null,null,null,null,null,null,null,null,null,null,null," --Valitse--"," --Valitse--"," --Valitse--"," --Valitse--"]
[null,null," --Valitse--"," ",null," --Valitse--"," ",null," --Valitse--"," ",null," --Valitse--",null,null," --Valitse--",null,null," --Valitse--",null,null,null,null,null,null,null,null,null,null,null,null,null,null,null,null,null," --Valitse--"," --Valitse--"," --Valitse--"," --Valitse--"]
[null,null," --Valitse--"," ",null," --Valitse--"," ",null," --Valitse--"," ",null," --Valitse--",null,null," --Valitse--",null,null," --Valitse--",null,null,null,null,null,null,null,null,null,null,null,null,null,null,null,null,null," --Valitse--"," --Valitse--"," --Valitse--"," --Valitse--"]
[null,null," --Valitse--"," ",null," --Valitse--"," ",null," --Valitse--"," ",null," --Valitse--",null,null," --Valitse--",null,null," --Valitse--",null,null,null,null,null,null,null,null,null,null,null,null,null,null,null,null,null," --Valitse--"," --Valitse--"," --Valitse--"," --Valitse--"]
[null,null," --Valitse--"," ",null," --Valitse--"," ",null," --Valitse--"," ",null," --Valitse--",null,null," --Valitse--",null,null," --Valitse--",null,null,null,null,null,null,null,null,null,null,null,null,null,null,null,null,null," --Valitse--"," --Valitse--"," --Valitse--"," --Valitse--"]
[null,null," --Valitse--"," ",null," --Valitse--"," ",null," --Valitse--"," ",null," --Valitse--",null,null," --Valitse--",null,null," --Valitse--",null,null,null,null,null,null,null,null,null,null,null,null,null,null,null,null,null," --Valitse--"," --Valitse--"," --Valitse--"," --Valitse--"]
[null,null," --Valitse--"," ",null," --Valitse--"," ",null," --Valitse--"," ",null," --Valitse--",null,null," --Valitse--",null,null," --Valitse--",null,null,null,null,null,null,null,null,null,null,null,null,null,null,null,null,null," --Valitse--"," --Valitse--"," --Valitse--"," --Valitse--"]
[null,null," --Valitse--"," ",null," --Valitse--"," ",null," --Valitse--"," ",null," --Valitse--",null,null," --Valitse--",null,null," --Valitse--",null,null,null,null,null,null,null,null,null,null,null,null,null,null,null,null,null," --Valitse--"," --Valitse--"," --Valitse--"," --Valitse--"]
[null,null," --Valitse--"," ",null," --Valitse--"," ",null," --Valitse--"," ",null," --Valitse--",null,null," --Valitse--",null,null," --Valitse--",null,null,null,null,null,null,null,null,null,null,null,null,null,null,null,null,null," --Valitse--"," --Valitse--"," --Valitse--"," --Valitse--"]
[null,null," --Valitse--"," ",null," --Valitse--"," ",null," --Valitse--"," ",null," --Valitse--",null,null," --Valitse--",null,null," --Valitse--",null,null,null,null,null,null,null,null,null,null,null,null,null,null,null,null,null," --Valitse--"," --Valitse--"," --Valitse--"," --Valitse--"]
[null," "," --Valitse--"," ",null," --Valitse--"," ",null," --Valitse--"," ",null," --Valitse--",null,null," --Valitse--",null,null," --Valitse--",null,null,null,null,null,null,null,null,null,null,null,null,null,null,null,null,null," --Valitse--"," --Valitse--"," --Valitse--"," --Valitse--"]
[null," "," --Valitse--"," ",null," --Valitse--"," ",null," --Valitse--"," ",null," --Valitse--",null,null," --Valitse--",null,null," --Valitse--",null,null,null,null,null,null,null,null,null,null,null,null,null,null,null,null,null," --Valitse--"," --Valitse--"," --Valitse--"," --Valitse--"]
[null," "," --Valitse--"," ",null," --Valitse--"," ",null," --Valitse--"," ",null," --Valitse--",null,null," --Valitse--",null,null," --Valitse--",null,null,null,null,null,null,null,null,null,null,null,null,null,null,null,null,null," --Valitse--"," --Valitse--"," --Valitse--"," --Valitse--"]
[null," "," --Valitse--"," ",null," --Valitse--"," ",null," --Valitse--"," ",null," --Valitse--",null,null," --Valitse--",null,null," --Valitse--",null,null,null,null,null,null,null,null,null,null,null,null,null,null,null,null,null," --Valitse--"," --Valitse--"," --Valitse--"," --Valitse--"]
[null," "," --Valitse--"," ",null," --Valitse--"," ",null," --Valitse--"," ",null," --Valitse--",null,null," --Valitse--",null,null," --Valitse--",null,null,null,null,null,null,null,null,null,null,null,null,null,null,null,null,null," --Valitse--"," --Valitse--"," --Valitse--"," --Valitse--"]
[null," "," --Valitse--"," ",null," --Valitse--"," ",null," --Valitse--"," ",null," --Valitse--",null,null," --Valitse--",null,null," --Valitse--",null,null,null,null,null,null,null,null,null,null,null,null,null,null,null,null,null," --Valitse--"," --Valitse--"," --Valitse--"," --Valitse--"]
[null," "," --Valitse--"," ",null," --Valitse--"," ",null," --Valitse--"," ",null," --Valitse--",null,null," --Valitse--",null,null," --Valitse--",null,null,null,null,null,null,null,null,null,null,null,null,null,null,null,null,null," --Valitse--"," --Valitse--"," --Valitse--"," --Valitse--"]
[null," "," --Valitse--"," ",null," --Valitse--"," ",null," --Valitse--"," ",null," --Valitse--",null,null," --Valitse--",null,null," --Valitse--",null,null,null,null,null,null,null,null,null,null,null,null,null,null,null,null,null," --Valitse--"," --Valitse--"," --Valitse--"," --Valitse--"]
[null," "," --Valitse--"," ",null," --Valitse--"," ",null," --Valitse--"," ",null," --Valitse--",null,null," --Valitse--",null,null," --Valitse--",null,null,null,null,null,null,null,null,null,null,null,null,null,null,null,null,null," --Valitse--"," --Valitse--"," --Valitse--"," --Valitse--"]
[null," "," --Valitse--"," ",null," --Valitse--"," ",null," --Valitse--"," ",null," --Valitse--",null,null," --Valitse--",null,null," --Valitse--",null,null,null,null,null,null,null,null,null,null,null,null,null,null,null,null,null," --Valitse--"," --Valitse--"," --Valitse--"," --Valitse--"]
[null," "," --Valitse--"," ",null," --Valitse--"," ",null," --Valitse--"," ",null," --Valitse--",null,null," --Valitse--",null,null," --Valitse--",null,null,null,null,null,null,null,null,null,null,null,null,null,null,null,null,null," --Valitse--"," --Valitse--"," --Valitse--"," --Valitse--"]
[null," "," --Valitse--"," ",null," --Valitse--"," ",null," --Valitse--"," ",null," --Valitse--",null,null," --Valitse--",null,null," --Valitse--",null,null,null,null,null,null,null,null,null,null,null,null,null,null,null,null,null," --Valitse--"," --Valitse--"," --Valitse--"," --Valitse--"]
[null," "," --Valitse--"," ",null," --Valitse--"," ",null," --Valitse--"," ",null," --Valitse--",null,null," --Valitse--",null,null," --Valitse--",null,null,null,null,null,null,null,null,null,null,null,null,null,null,null,null,null," --Valitse--"," --Valitse--"," --Valitse--"," --Valitse--"]
[null," "," --Valitse--"," ",null," --Valitse--"," ",null," --Valitse--"," ",null," --Valitse--",null,null," --Valitse--",null,null," --Valitse--",null,null,null,null,null,null,null,null,null,null,null,null,null,null,null,null,null," --Valitse--"," --Valitse--"," --Valitse--"," --Valitse--"]
[null," "," --Valitse--"," ",null," --Valitse--"," ",null," --Valitse--"," ",null," --Valitse--",null,null," --Valitse--",null,null," --Valitse--",null,null,null,null,null,null,null,null,null,null,null,null,null,null,null,null,null," --Valitse--"," --Valitse--"," --Valitse--"," --Valitse--"]
[null," "," --Valitse--"," ",null," --Valitse--"," ",null," --Valitse--"," ",null," --Valitse--",null,null," --Valitse--",null,null," --Valitse--",null,null,null,null,null,null,null,null,null,null,null,null,null,null,null,null,null," --Valitse--"," --Valitse--"," --Valitse--"," --Valitse--"]
[null," "," --Valitse--"," ",null," --Valitse--"," ",null," --Valitse--"," ",null," --Valitse--",null,null," --Valitse--",null,null," --Valitse--",null,null,null,null,null,null,null,null,null,null,null,null,null,null,null,null,null," --Valitse--"," --Valitse--"," --Valitse--"," --Valitse--"]
[null," "," --Valitse--"," ",null," --Valitse--"," ",null," --Valitse--"," ",null," --Valitse--",null,null," --Valitse--",null,null," --Valitse--",null,null,null,null,null,null,null,null,null,null,null,null,null,null,null,null,null," --Valitse--"," --Valitse--"," --Valitse--"," --Valitse--"]

{"sheet":"e. tietoturva_tietovarannot","index":5,"n_rows":47,"n_cols":10,"rows_kept":47,"cut":false,"hidden":false,"merged":[]}
[]
[null,"e.1 Tietovarannon nimi (nimike)","e.2 Henkilöstön luotettavuuden varmistaminen (12 §)","e.3 Tietoaineistojen ja tietojärjestelmien tietoturvallisuuden varmistaminen ja riskienhallinta  (13 §)","e.4 Yleisessä tietoliikenneverkossa tapahtuvan tietojensiirron turvallisuuden varmistaminen (14 §)","e.5 Tietoaineistojen turvallisuuden varmistaminen (15 §)","e.6 Tietojärjestelmien käyttöoikeuksien määrittely ja hallinta (16 §)","e.7 Tietojärjestelmien käytön ja tietojen luovutusten lokitus (17 §)","e.8 Asiakirjojen turvallisuusluokittelu (18 §)","e.9 Muut tietoturvaan liittyvät ohjeet"]
[]
[null,{"$f":"'c. tietovarannot'!B4","v":0}]
[null,{"$f":"'c. tietovarannot'!B5","v":0}]
[null,{"$f":"'c. tietovarannot'!B6","v":0}]
[null,{"$f":"'c. tietovarannot'!B7","v":0}]
[null,{"$f":"'c. tietovarannot'!B8","v":0}]
[null,{"$f":"'c. tietovarannot'!B9","v":0}]
[null,{"$f":"'c. tietovarannot'!B10","v":0}]
[null,{"$f":"'c. tietovarannot'!B11","v":0}]
[null,{"$f":"'c. tietovarannot'!B12","v":0}]
[null,{"$f":"'c. tietovarannot'!B13","v":0}]
[null,{"$f":"'c. tietovarannot'!B14","v":0}]
[null,{"$f":"'c. tietovarannot'!B15","v":0}]
[null,{"$f":"'c. tietovarannot'!B16","v":0}]
[null,{"$f":"'c. tietovarannot'!B17","v":0}]
[null,{"$f":"'c. tietovarannot'!B18","v":0}]
[null,{"$f":"'c. tietovarannot'!B19","v":0}]
[null,{"$f":"'c. tietovarannot'!B20","v":0}]
[null,{"$f":"'c. tietovarannot'!B21","v":0}]
[null,{"$f":"'c. tietovarannot'!B22","v":0}]
[null,{"$f":"'c. tietovarannot'!B23","v":0}]
[null,{"$f":"'c. tietovarannot'!B24","v":0}]
[null,{"$f":"'c. tietovarannot'!B25","v":" "}]
[null,{"$f":"'c. tietovarannot'!B26","v":" "}]
[null,{"$f":"'c. tietovarannot'!B27","v":" "}]
[null,{"$f":"'c. tietovarannot'!B28","v":" "}]
[null,{"$f":"'c. tietovarannot'!B29","v":" "}]
[null,{"$f":"'c. tietovarannot'!B30","v":" "}]
[null,{"$f":"'c. tietovarannot'!B31","v":" "}]
[null,{"$f":"'c. tietovarannot'!B32","v":" "}]
[null,{"$f":"'c. tietovarannot'!B33","v":" "}]
[null,{"$f":"'c. tietovarannot'!B34","v":" "}]
[null,{"$f":"'c. tietovarannot'!B35","v":" "}]
[null,{"$f":"'c. tietovarannot'!B36","v":" "}]
[null,{"$f":"'c. tietovarannot'!B37","v":" "}]
[null,{"$f":"'c. tietovarannot'!B38","v":" "}]
[null,{"$f":"'c. tietovarannot'!B39","v":" "}]
[null,{"$f":"'c. tietovarannot'!B40","v":" "}]
[null,{"$f":"'c. tietovarannot'!B41","v":" "}]
[null,{"$f":"'c. tietovarannot'!B42","v":" "}]
[null,{"$f":"'c. tietovarannot'!B43","v":" "}]
[null,{"$f":"'c. tietovarannot'!B44","v":" "}]
[null,{"$f":"'c. tietovarannot'!B45","v":" "}]
[null,{"$f":"'c. tietovarannot'!B46","v":" "}]
[null,{"$f":"'c. tietovarannot'!B47","v":" "}]

{"sheet":"f.tietoturva_henk.tietovarannot","index":6,"n_rows":47,"n_cols":10,"rows_kept":47,"cut":false,"hidden":false,"merged":[]}
[]
[null,"f.1 Henkilötietovarannon nimi (nimike)","f.2 Henkilöstön luotettavuuden varmistaminen (12 §)","f.3 Tietoaineistojen ja tietojärjestelmien tietoturvallisuuden varmistaminen ja riskienhallinta  (13 §)","f.4 Yleisessä tietoliikenneverkossa tapahtuvan tietojensiirron turvallisuuden varmistaminen (14 §)","f.5 Tietoaineistojen turvallisuuden varmistaminen (15 §)","f.6 Tietojärjestelmien käyttöoikeuksien määrittely ja hallinta (16 §)","f.7 Tietojärjestelmien käytön ja tietojen luovutusten lokitus (17 §)","f.8 Asiakirjojen turvallisuusluokittelu (18 §)","f.9 Muut henkilötietojen käsittelyn ohjeet"]
[]
[null,{"$f":"'d. henk.tietovarannot'!B4","v":0}]
[null,{"$f":"'d. henk.tietovarannot'!B5","v":0}]
[null,{"$f":"'d. henk.tietovarannot'!B6","v":0}]
[null,{"$f":"'d. henk.tietovarannot'!B7","v":0}]
[null,{"$f":"'d. henk.tietovarannot'!B8","v":0}]
[null,{"$f":"'d. henk.tietovarannot'!B9","v":0}]
[null,{"$f":"'d. henk.tietovarannot'!B10","v":0}]
[null,{"$f":"'d. henk.tietovarannot'!B11","v":0}]
[null,{"$f":"'d. henk.tietovarannot'!B12","v":0}]
[null,{"$f":"'d. henk.tietovarannot'!B13","v":0}]
[null,{"$f":"'d. henk.tietovarannot'!B14","v":0}]
[null,{"$f":"'d. henk.tietovarannot'!B15","v":0}]
[null,{"$f":"'d. henk.tietovarannot'!B16","v":0}]
[null,{"$f":"'d. henk.tietovarannot'!B17","v":0}]
[null,{"$f":"'d. henk.tietovarannot'!B18","v":0}]
[null,{"$f":"'d. henk.tietovarannot'!B19","v":0}]
[null,{"$f":"'d. henk.tietovarannot'!B20","v":0}]
[null,{"$f":"'d. henk.tietovarannot'!B21","v":0}]
[null,{"$f":"'d. henk.tietovarannot'!B22","v":0}]
[null,{"$f":"'d. henk.tietovarannot'!B23","v":0}]
[null,{"$f":"'d. henk.tietovarannot'!B24","v":0}]
[null,{"$f":"'d. henk.tietovarannot'!B25","v":0}]
[null,{"$f":"'d. henk.tietovarannot'!B26","v":0}]
[null,{"$f":"'d. henk.tietovarannot'!B27","v":0}]
[null,{"$f":"'d. henk.tietovarannot'!B28","v":0}]
[null,{"$f":"'d. henk.tietovarannot'!B29","v":0}]
[null,{"$f":"'d. henk.tietovarannot'!B30","v":" "}]
[null,{"$f":"'d. henk.tietovarannot'!B31","v":" "}]
[null,{"$f":"'d. henk.tietovarannot'!B32","v":" "}]
[null,{"$f":"'d. henk.tietovarannot'!B33","v":" "}]
[null,{"$f":"'d. henk.tietovarannot'!B34","v":" "}]
[null,{"$f":"'d. henk.tietovarannot'!B35","v":" "}]
[null,{"$f":"'d. henk.tietovarannot'!B36","v":" "}]
[null,{"$f":"'d. henk.tietovarannot'!B37","v":" "}]
[null,{"$f":"'d. henk.tietovarannot'!B38","v":" "}]
[null,{"$f":"'d. henk.tietovarannot'!B39","v":" "}]
[null,{"$f":"'d. henk.tietovarannot'!B40","v":" "}]
[null,{"$f":"'d. henk.tietovarannot'!B41","v":" "}]
[null,{"$f":"'d. henk.tietovarannot'!B42","v":" "}]
[null,{"$f":"'d. henk.tietovarannot'!B43","v":" "}]
[null,{"$f":"'d. henk.tietovarannot'!B44","v":" "}]
[null,{"$f":"'d. henk.tietovarannot'!B45","v":" "}]
[null,{"$f":"'d. henk.tietovarannot'!B46","v":" "}]
[null,{"$f":"'d. henk.tietovarannot'!B47","v":" "}]

{"sheet":"1. AMS","index":7,"n_rows":37,"n_cols":8,"rows_kept":37,"cut":false,"hidden":false,"merged":[]}
[]
[]
[]
[]
[null,"Valeotsikko 1","Valeotsikko 2","Valeotsikko 3","Valeotsikko 4","Valeotsikko 5","Valeotsikko 6","Valeotsikko 7"]
[null,"Asiakirja tai tietoaineisto","Säilytysaika","Säilytysajan peruste","Säilytystapa","Siirretäänkö säilytysajan jälkeen arkistoon?","Arkistointitapa","Millä tavoin hävitetään, mikäli ei arkistoida pysyvästi?"]
[null,{"$f":"'c. tietovarannot'!E4","v":0},{"$f":"'c. tietovarannot'!Y4","v":"2 vuotta"},{"$f":"'c. tietovarannot'!Z4","v":"Laki"},{"$f":"'c. tietovarannot'!AA4","v":"Sähköisesti"},{"$f":"'c. tietovarannot'!AB4","v":"Ei"},{"$f":"'c. tietovarannot'!AC4","v":"Sähköisesti"},{"$f":"'c. tietovarannot'!AD4","v":"Ylikirjoitetaan"}]
[null,{"$f":"'c. tietovarannot'!E5","v":0},{"$f":"'c. tietovarannot'!Y5","v":"10 vuotta"},{"$f":"'c. tietovarannot'!Z5","v":"Laki"},{"$f":"'c. tietovarannot'!AA5","v":"Paperilla"},{"$f":"'c. tietovarannot'!AB5","v":"Kyllä"},{"$f":"'c. tietovarannot'!AC5","v":"Paperilla"},{"$f":"'c. tietovarannot'!AD5","v":"Muulla tavoin tietoturvallisesti"}]
[null,{"$f":"'c. tietovarannot'!E6","v":0},{"$f":"'c. tietovarannot'!Y6","v":0},{"$f":"'c. tietovarannot'!Z6","v":0},{"$f":"'c. tietovarannot'!AA6","v":" --Valitse--"},{"$f":"'c. tietovarannot'!AB6","v":" --Valitse--"},{"$f":"'c. tietovarannot'!AC6","v":" --Valitse--"},{"$f":"'c. tietovarannot'!AD6","v":"Silputaan"}]
[null,{"$f":"'c. tietovarannot'!E7","v":0},{"$f":"'c. tietovarannot'!Y7","v":0},{"$f":"'c. tietovarannot'!Z7","v":0},{"$f":"'c. tietovarannot'!AA7","v":" --Valitse--"},{"$f":"'c. tietovarannot'!AB7","v":" --Valitse--"},{"$f":"'c. tietovarannot'!AC7","v":" --Valitse--"},{"$f":"'c. tietovarannot'!AD7","v":" --Valitse--"}]
[null,{"$f":"'c. tietovarannot'!E8","v":0},{"$f":"'c. tietovarannot'!Y8","v":0},{"$f":"'c. tietovarannot'!Z8","v":0},{"$f":"'c. tietovarannot'!AA8","v":" --Valitse--"},{"$f":"'c. tietovarannot'!AB8","v":" --Valitse--"},{"$f":"'c. tietovarannot'!AC8","v":" --Valitse--"},{"$f":"'c. tietovarannot'!AD8","v":" --Valitse--"}]
[null,{"$f":"'c. tietovarannot'!E9","v":0},{"$f":"'c. tietovarannot'!Y9","v":0},{"$f":"'c. tietovarannot'!Z9","v":0},{"$f":"'c. tietovarannot'!AA9","v":" --Valitse--"},{"$f":"'c. tietovarannot'!AB9","v":" --Valitse--"},{"$f":"'c. tietovarannot'!AC9","v":" --Valitse--"},{"$f":"'c. tietovarannot'!AD9","v":" --Valitse--"}]
[null,{"$f":"'c. tietovarannot'!E10","v":0},{"$f":"'c. tietovarannot'!Y10","v":0},{"$f":"'c. tietovarannot'!Z10","v":0},{"$f":"'c. tietovarannot'!AA10","v":" --Valitse--"},{"$f":"'c. tietovarannot'!AB10","v":" --Valitse--"},{"$f":"'c. tietovarannot'!AC10","v":" --Valitse--"},{"$f":"'c. tietovarannot'!AD10","v":" --Valitse--"}]
[null,{"$f":"'c. tietovarannot'!E11","v":0},{"$f":"'c. tietovarannot'!Y11","v":0},{"$f":"'c. tietovarannot'!Z11","v":0},{"$f":"'c. tietovarannot'!AA11","v":" --Valitse--"},{"$f":"'c. tietovarannot'!AB11","v":" --Valitse--"},{"$f":"'c. tietovarannot'!AC11","v":" --Valitse--"},{"$f":"'c. tietovarannot'!AD11","v":" --Valitse--"}]
[null,{"$f":"'c. tietovarannot'!E12","v":0},{"$f":"'c. tietovarannot'!Y12","v":0},{"$f":"'c. tietovarannot'!Z12","v":0},{"$f":"'c. tietovarannot'!AA12","v":" --Valitse--"},{"$f":"'c. tietovarannot'!AB12","v":" --Valitse--"},{"$f":"'c. tietovarannot'!AC12","v":" --Valitse--"},{"$f":"'c. tietovarannot'!AD12","v":" --Valitse--"}]
[null,{"$f":"'c. tietovarannot'!E13","v":0},{"$f":"'c. tietovarannot'!Y13","v":0},{"$f":"'c. tietovarannot'!Z13","v":0},{"$f":"'c. tietovarannot'!AA13","v":" --Valitse--"},{"$f":"'c. tietovarannot'!AB13","v":" --Valitse--"},{"$f":"'c. tietovarannot'!AC13","v":" --Valitse--"},{"$f":"'c. tietovarannot'!AD13","v":" --Valitse--"}]
[null,{"$f":"'c. tietovarannot'!E14","v":0},{"$f":"'c. tietovarannot'!Y14","v":0},{"$f":"'c. tietovarannot'!Z14","v":0},{"$f":"'c. tietovarannot'!AA14","v":" --Valitse--"},{"$f":"'c. tietovarannot'!AB14","v":" --Valitse--"},{"$f":"'c. tietovarannot'!AC14","v":" --Valitse--"},{"$f":"'c. tietovarannot'!AD14","v":" --Valitse--"}]
[null,{"$f":"'c. tietovarannot'!E15","v":0},{"$f":"'c. tietovarannot'!Y15","v":0},{"$f":"'c. tietovarannot'!Z15","v":0},{"$f":"'c. tietovarannot'!AA15","v":" --Valitse--"},{"$f":"'c. tietovarannot'!AB15","v":" --Valitse--"},{"$f":"'c. tietovarannot'!AC15","v":" --Valitse--"},{"$f":"'c. tietovarannot'!AD15","v":" --Valitse--"}]
[null,{"$f":"'c. tietovarannot'!E16","v":0},{"$f":"'c. tietovarannot'!Y16","v":0},{"$f":"'c. tietovarannot'!Z16","v":0},{"$f":"'c. tietovarannot'!AA16","v":" --Valitse--"},{"$f":"'c. tietovarannot'!AB16","v":" --Valitse--"},{"$f":"'c. tietovarannot'!AC16","v":" --Valitse--"},{"$f":"'c. tietovarannot'!AD16","v":" --Valitse--"}]
[null,{"$f":"'c. tietovarannot'!E17","v":0},{"$f":"'c. tietovarannot'!Y17","v":0},{"$f":"'c. tietovarannot'!Z17","v":0},{"$f":"'c. tietovarannot'!AA17","v":" --Valitse--"},{"$f":"'c. tietovarannot'!AB17","v":" --Valitse--"},{"$f":"'c. tietovarannot'!AC17","v":" --Valitse--"},{"$f":"'c. tietovarannot'!AD17","v":" --Valitse--"}]
[null,{"$f":"'c. tietovarannot'!E18","v":0},{"$f":"'c. tietovarannot'!Y18","v":0},{"$f":"'c. tietovarannot'!Z18","v":0},{"$f":"'c. tietovarannot'!AA18","v":" --Valitse--"},{"$f":"'c. tietovarannot'!AB18","v":" --Valitse--"},{"$f":"'c. tietovarannot'!AC18","v":" --Valitse--"},{"$f":"'c. tietovarannot'!AD18","v":" --Valitse--"}]
[null,{"$f":"'c. tietovarannot'!E19","v":0},{"$f":"'c. tietovarannot'!Y19","v":0},{"$f":"'c. tietovarannot'!Z19","v":0},{"$f":"'c. tietovarannot'!AA19","v":" --Valitse--"},{"$f":"'c. tietovarannot'!AB19","v":" --Valitse--"},{"$f":"'c. tietovarannot'!AC19","v":" --Valitse--"},{"$f":"'c. tietovarannot'!AD19","v":" --Valitse--"}]
[null,{"$f":"'c. tietovarannot'!E20","v":0},{"$f":"'c. tietovarannot'!Y20","v":0},{"$f":"'c. tietovarannot'!Z20","v":0},{"$f":"'c. tietovarannot'!AA20","v":" --Valitse--"},{"$f":"'c. tietovarannot'!AB20","v":" --Valitse--"},{"$f":"'c. tietovarannot'!AC20","v":" --Valitse--"},{"$f":"'c. tietovarannot'!AD20","v":" --Valitse--"}]
[null,{"$f":"'c. tietovarannot'!E21","v":0},{"$f":"'c. tietovarannot'!Y21","v":0},{"$f":"'c. tietovarannot'!Z21","v":0},{"$f":"'c. tietovarannot'!AA21","v":" --Valitse--"},{"$f":"'c. tietovarannot'!AB21","v":" --Valitse--"},{"$f":"'c. tietovarannot'!AC21","v":" --Valitse--"},{"$f":"'c. tietovarannot'!AD21","v":" --Valitse--"}]
[null,{"$f":"'c. tietovarannot'!E22","v":0},{"$f":"'c. tietovarannot'!Y22","v":0},{"$f":"'c. tietovarannot'!Z22","v":0},{"$f":"'c. tietovarannot'!AA22","v":" --Valitse--"},{"$f":"'c. tietovarannot'!AB22","v":" --Valitse--"},{"$f":"'c. tietovarannot'!AC22","v":" --Valitse--"},{"$f":"'c. tietovarannot'!AD22","v":" --Valitse--"}]
[null,{"$f":"'c. tietovarannot'!E23","v":0},{"$f":"'c. tietovarannot'!Y23","v":0},{"$f":"'c. tietovarannot'!Z23","v":0},{"$f":"'c. tietovarannot'!AA23","v":" --Valitse--"},{"$f":"'c. tietovarannot'!AB23","v":" --Valitse--"},{"$f":"'c. tietovarannot'!AC23","v":" --Valitse--"},{"$f":"'c. tietovarannot'!AD23","v":" --Valitse--"}]
[null,{"$f":"'c. tietovarannot'!E24","v":0},{"$f":"'c. tietovarannot'!Y24","v":0},{"$f":"'c. tietovarannot'!Z24","v":0},{"$f":"'c. tietovarannot'!AA24","v":" --Valitse--"},{"$f":"'c. tietovarannot'!AB24","v":" --Valitse--"},{"$f":"'c. tietovarannot'!AC24","v":" --Valitse--"},{"$f":"'c. tietovarannot'!AD24","v":" --Valitse--"}]
[null,{"$f":"'c. tietovarannot'!E25","v":0},{"$f":"'c. tietovarannot'!Y25","v":0},{"$f":"'c. tietovarannot'!Z25","v":0},{"$f":"'c. tietovarannot'!AA25","v":" --Valitse--"},{"$f":"'c. tietovarannot'!AB25","v":" --Valitse--"},{"$f":"'c. tietovarannot'!AC25","v":" --Valitse--"},{"$f":"'c. tietovarannot'!AD25","v":" --Valitse--"}]
[]
[]
[]
[]
[]
[]
[]
[]
[null,null,null," "]

{"sheet":"2. Seloste","index":8,"n_rows":99,"n_cols":14,"rows_kept":99,"cut":false,"hidden":false,"merged":[[12,7,13,7],[12,8,13,8],[12,9,13,9],[12,10,13,10],[12,13,13,13],[12,11,12,12],[4,2,4,7],[5,2,5,3],[5,4,5,5],[5,6,5,7],[11,0,11,13],[12,5,13,5],[12,6,13,6],[12,0,13,0],[12,1,13,1],[12,2,13,2],[12,3,13,3],[12,4,13,4]]}
[]
[]
[]
[]
[null,null,"Rekisterinpitäjä"]
[null,null,"Nimi ja yhteystiedot",null,"Tietosuojavastaava (jos nimitetty)",null,"Edustaja (jos tarpeen)"]
[null,null,"Organisaation nimi",null,"Nimi",null,"Nimi"]
[null,null,"Osoite",null,"Osoite",null,"Osoite"]
[null,null,"Sähköposti",null,"Sähköposti",null,"Sähköposti"]
[null,null,"Puhelinnumero",null,"Puhelinnumero",null,"Puhelinnumero"]
[]
["Seloste käsittelytoimista"]
["Tietovarannon nimi","Rekisterinpitäjä","Tehtävä, johon tietoja käsitellään","Käsittelyn tarkoitus","(Tarvittaessa) yhteis-rekisterinpitäjä ja tämän yhteystiedot ","Rekisteröityjen ryhmät","Henkilötietojen ryhmät","Vastaanottaja-ryhmät","Viittaus (mahdolliseen) henkilötietojen käsittelijän kanssa solmittuun henkilötietojen käsittelyä koskevaan sopimukseen","Kolmannet maat ja kansainväliset järjestöt, joihin tietoja siirretään tai tieto siitä, ettei henkilötietoja siirretä kolmansiin maihin tai kansainvälisiin järjestöihin","Asianmukaisia suojatoimia koskeva dokumentaatio, jos henkilötietoja siirretään kolmansiin maihin tai kansainvälisiin järjestöihin tietosuoja-asetuksen 49 artiklan 1 kohdan toisessa alakohdassa tarkoitetulla siirrolla","Tietojen säilytysajat, tai sen määrittämisen kriteerit",null,"Kuvaus tietosuoja-asetuksen 32 artiklan 1 kohdan mukaisista teknisistä ja organisatorisista turvatoimista"]
[null,null,null,null,null,null,null,null,null,null,null,"Tietojen säilytysajat","Tietojen säilytysajan määrittämisen kriteerit"]
[{"$f":"'d. henk.tietovarannot'!B4","v":0},{"$f":"'d. henk.tietovarannot'!U4","v":0},{"$f":"'d. henk.tietovarannot'!W4","v":0},{"$f":"'d. henk.tietovarannot'!X4","v":0},{"$f":"'d. henk.tietovarannot'!Y4","v":0},{"$f":"'d. henk.tietovarannot'!Z4","v":0},{"$f":"'d. henk.tietovarannot'!AA4","v":0},{"$f":"'d. henk.tietovarannot'!AB4","v":0},{"$f":"'d. henk.tietovarannot'!AC4","v":0},{"$f":"'d. henk.tietovarannot'!AD4","v":0},{"$f":"'d. henk.tietovarannot'!AE4","v":0},{"$f":"'d. henk.tietovarannot'!AH4","v":0},{"$f":"'d. henk.tietovarannot'!AI4","v":0},{"$f":"f.tietoturva_henk.tietovarannot!J4","v":0}]
[{"$f":"'d. henk.tietovarannot'!B5","v":0},{"$f":"'d. henk.tietovarannot'!U5","v":0},{"$f":"'d. henk.tietovarannot'!W5","v":0},{"$f":"'d. henk.tietovarannot'!X5","v":0},{"$f":"'d. henk.tietovarannot'!Y5","v":0},{"$f":"'d. henk.tietovarannot'!Z5","v":0},{"$f":"'d. henk.tietovarannot'!AA5","v":0},{"$f":"'d. henk.tietovarannot'!AB5","v":0},{"$f":"'d. henk.tietovarannot'!AC5","v":0},{"$f":"'d. henk.tietovarannot'!AD5","v":0},{"$f":"'d. henk.tietovarannot'!AE5","v":0},{"$f":"'d. henk.tietovarannot'!AH5","v":0},{"$f":"'d. henk.tietovarannot'!AI5","v":0},{"$f":"f.tietoturva_henk.tietovarannot!J5","v":0}]
[{"$f":"'d. henk.tietovarannot'!B6","v":0},{"$f":"'d. henk.tietovarannot'!U6","v":0},{"$f":"'d. henk.tietovarannot'!W6","v":0},{"$f":"'d. henk.tietovarannot'!X6","v":0},{"$f":"'d. henk.tietovarannot'!Y6","v":0},{"$f":"'d. henk.tietovarannot'!Z6","v":0},{"$f":"'d. henk.tietovarannot'!AA6","v":0},{"$f":"'d. henk.tietovarannot'!AB6","v":0},{"$f":"'d. henk.tietovarannot'!AC6","v":0},{"$f":"'d. henk.tietovarannot'!AD6","v":0},{"$f":"'d. henk.tietovarannot'!AE6","v":0},{"$f":"'d. henk.tietovarannot'!AH6","v":0},{"$f":"'d. henk.tietovarannot'!AI6","v":0},{"$f":"f.tietoturva_henk.tietovarannot!J6","v":0}]
[{"$f":"'d. henk.tietovarannot'!B7","v":0},{"$f":"'d. henk.tietovarannot'!U7","v":0},{"$f":"'d. henk.tietovarannot'!W7","v":0},{"$f":"'d. henk.tietovarannot'!X7","v":0},{"$f":"'d. henk.tietovarannot'!Y7","v":0},{"$f":"'d. henk.tietovarannot'!Z7","v":0},{"$f":"'d. henk.tietovarannot'!AA7","v":0},{"$f":"'d. henk.tietovarannot'!AB7","v":0},{"$f":"'d. henk.tietovarannot'!AC7","v":0},{"$f":"'d. henk.tietovarannot'!AD7","v":0},{"$f":"'d. henk.tietovarannot'!AE7","v":0},{"$f":"'d. henk.tietovarannot'!AH7","v":0},{"$f":"'d. henk.tietovarannot'!AI7","v":0},{"$f":"f.tietoturva_henk.tietovarannot!J7","v":0}]
[{"$f":"'d. henk.tietovarannot'!B8","v":0},{"$f":"'d. henk.tietovarannot'!U8","v":0},{"$f":"'d. henk.tietovarannot'!W8","v":0},{"$f":"'d. henk.tietovarannot'!X8","v":0},{"$f":"'d. henk.tietovarannot'!Y8","v":0},{"$f":"'d. henk.tietovarannot'!Z8","v":0},{"$f":"'d. henk.tietovarannot'!AA8","v":0},{"$f":"'d. henk.tietovarannot'!AB8","v":0},{"$f":"'d. henk.tietovarannot'!AC8","v":0},{"$f":"'d. henk.tietovarannot'!AD8","v":0},{"$f":"'d. henk.tietovarannot'!AE8","v":0},{"$f":"'d. henk.tietovarannot'!AH8","v":0},{"$f":"'d. henk.tietovarannot'!AI8","v":0},{"$f":"f.tietoturva_henk.tietovarannot!J8","v":0}]
[{"$f":"'d. henk.tietovarannot'!B9","v":0},{"$f":"'d. henk.tietovarannot'!U9","v":0},{"$f":"'d. henk.tietovarannot'!W9","v":0},{"$f":"'d. henk.tietovarannot'!X9","v":0},{"$f":"'d. henk.tietovarannot'!Y9","v":0},{"$f":"'d. henk.tietovarannot'!Z9","v":0},{"$f":"'d. henk.tietovarannot'!AA9","v":0},{"$f":"'d. henk.tietovarannot'!AB9","v":0},{"$f":"'d. henk.tietovarannot'!AC9","v":0},{"$f":"'d. henk.tietovarannot'!AD9","v":0},{"$f":"'d. henk.tietovarannot'!AE9","v":0},{"$f":"'d. henk.tietovarannot'!AH9","v":0},{"$f":"'d. henk.tietovarannot'!AI9","v":0},{"$f":"f.tietoturva_henk.tietovarannot!J9","v":0}]
[{"$f":"'d. henk.tietovarannot'!B10","v":0},{"$f":"'d. henk.tietovarannot'!U10","v":0},{"$f":"'d. henk.tietovarannot'!W10","v":0},{"$f":"'d. henk.tietovarannot'!X10","v":0},{"$f":"'d. henk.tietovarannot'!Y10","v":0},{"$f":"'d. henk.tietovarannot'!Z10","v":0},{"$f":"'d. henk.tietovarannot'!AA10","v":0},{"$f":"'d. henk.tietovarannot'!AB10","v":0},{"$f":"'d. henk.tietovarannot'!AC10","v":0},{"$f":"'d. henk.tietovarannot'!AD10","v":0},{"$f":"'d. henk.tietovarannot'!AE10","v":0},{"$f":"'d. henk.tietovarannot'!AH10","v":0},{"$f":"'d. henk.tietovarannot'!AI10","v":0},{"$f":"f.tietoturva_henk.tietovarannot!J10","v":0}]
[{"$f":"'d. henk.tietovarannot'!B11","v":0},{"$f":"'d. henk.tietovarannot'!U11","v":0},{"$f":"'d. henk.tietovarannot'!W11","v":0},{"$f":"'d. henk.tietovarannot'!X11","v":0},{"$f":"'d. henk.tietovarannot'!Y11","v":0},{"$f":"'d. henk.tietovarannot'!Z11","v":0},{"$f":"'d. henk.tietovarannot'!AA11","v":0},{"$f":"'d. henk.tietovarannot'!AB11","v":0},{"$f":"'d. henk.tietovarannot'!AC11","v":0},{"$f":"'d. henk.tietovarannot'!AD11","v":0},{"$f":"'d. henk.tietovarannot'!AE11","v":0},{"$f":"'d. henk.tietovarannot'!AH11","v":0},{"$f":"'d. henk.tietovarannot'!AI11","v":0},{"$f":"f.tietoturva_henk.tietovarannot!J11","v":0}]
[{"$f":"'d. henk.tietovarannot'!B12","v":0},{"$f":"'d. henk.tietovarannot'!U12","v":0},{"$f":"'d. henk.tietovarannot'!W12","v":0},{"$f":"'d. henk.tietovarannot'!X12","v":0},{"$f":"'d. henk.tietovarannot'!Y12","v":0},{"$f":"'d. henk.tietovarannot'!Z12","v":0},{"$f":"'d. henk.tietovarannot'!AA12","v":0},{"$f":"'d. henk.tietovarannot'!AB12","v":0},{"$f":"'d. henk.tietovarannot'!AC12","v":0},{"$f":"'d. henk.tietovarannot'!AD12","v":0},{"$f":"'d. henk.tietovarannot'!AE12","v":0},{"$f":"'d. henk.tietovarannot'!AH12","v":0},{"$f":"'d. henk.tietovarannot'!AI12","v":0},{"$f":"f.tietoturva_henk.tietovarannot!J12","v":0}]
[{"$f":"'d. henk.tietovarannot'!B13","v":0},{"$f":"'d. henk.tietovarannot'!U13","v":0},{"$f":"'d. henk.tietovarannot'!W13","v":0},{"$f":"'d. henk.tietovarannot'!X13","v":0},{"$f":"'d. henk.tietovarannot'!Y13","v":0},{"$f":"'d. henk.tietovarannot'!Z13","v":0},{"$f":"'d. henk.tietovarannot'!AA13","v":0},{"$f":"'d. henk.tietovarannot'!AB13","v":0},{"$f":"'d. henk.tietovarannot'!AC13","v":0},{"$f":"'d. henk.tietovarannot'!AD13","v":0},{"$f":"'d. henk.tietovarannot'!AE13","v":0},{"$f":"'d. henk.tietovarannot'!AH13","v":0},{"$f":"'d. henk.tietovarannot'!AI13","v":0},{"$f":"f.tietoturva_henk.tietovarannot!J13","v":0}]
[{"$f":"'d. henk.tietovarannot'!B14","v":0},{"$f":"'d. henk.tietovarannot'!U14","v":0},{"$f":"'d. henk.tietovarannot'!W14","v":0},{"$f":"'d. henk.tietovarannot'!X14","v":0},{"$f":"'d. henk.tietovarannot'!Y14","v":0},{"$f":"'d. henk.tietovarannot'!Z14","v":0},{"$f":"'d. henk.tietovarannot'!AA14","v":0},{"$f":"'d. henk.tietovarannot'!AB14","v":0},{"$f":"'d. henk.tietovarannot'!AC14","v":0},{"$f":"'d. henk.tietovarannot'!D14","v":0},{"$f":"'d. henk.tietovarannot'!AE14","v":0},{"$f":"'d. henk.tietovarannot'!AH14","v":0},{"$f":"'d. henk.tietovarannot'!AI14","v":0},{"$f":"f.tietoturva_henk.tietovarannot!J14","v":0}]
[{"$f":"'d. henk.tietovarannot'!B15","v":0},{"$f":"'d. henk.tietovarannot'!U15","v":0},{"$f":"'d. henk.tietovarannot'!W15","v":0},{"$f":"'d. henk.tietovarannot'!X15","v":0},{"$f":"'d. henk.tietovarannot'!Y15","v":0},{"$f":"'d. henk.tietovarannot'!Z15","v":0},{"$f":"'d. henk.tietovarannot'!AA15","v":0},{"$f":"'d. henk.tietovarannot'!AB15","v":0},{"$f":"'d. henk.tietovarannot'!AC15","v":0},{"$f":"'d. henk.tietovarannot'!D15","v":0},{"$f":"'d. henk.tietovarannot'!AE15","v":0},{"$f":"'d. henk.tietovarannot'!AH15","v":0},{"$f":"'d. henk.tietovarannot'!AI15","v":0},{"$f":"f.tietoturva_henk.tietovarannot!J15","v":0}]
[{"$f":"'d. henk.tietovarannot'!B16","v":0},{"$f":"'d. henk.tietovarannot'!U16","v":0},{"$f":"'d. henk.tietovarannot'!W16","v":0},{"$f":"'d. henk.tietovarannot'!X16","v":0},{"$f":"'d. henk.tietovarannot'!Y16","v":0},{"$f":"'d. henk.tietovarannot'!Z16","v":0},{"$f":"'d. henk.tietovarannot'!AA16","v":0},{"$f":"'d. henk.tietovarannot'!AB16","v":0},{"$f":"'d. henk.tietovarannot'!AC16","v":0},{"$f":"'d. henk.tietovarannot'!D16","v":" "},{"$f":"'d. henk.tietovarannot'!AE16","v":0},{"$f":"'d. henk.tietovarannot'!AH16","v":0},{"$f":"'d. henk.tietovarannot'!AI16","v":0},{"$f":"f.tietoturva_henk.tietovarannot!J16","v":0}]
[{"$f":"'d. henk.tietovarannot'!B17","v":0},{"$f":"'d. henk.tietovarannot'!U17","v":0},{"$f":"'d. henk.tietovarannot'!W17","v":0},{"$f":"'d. henk.tietovarannot'!X17","v":0},{"$f":"'d. henk.tietovarannot'!Y17","v":0},{"$f":"'d. henk.tietovarannot'!Z17","v":0},{"$f":"'d. henk.tietovarannot'!AA17","v":0},{"$f":"'d. henk.tietovarannot'!AB17","v":0},{"$f":"'d. henk.tietovarannot'!AC17","v":0},{"$f":"'d. henk.tietovarannot'!D17","v":" "},{"$f":"'d. henk.tietovarannot'!AE17","v":0},{"$f":"'d. henk.tietovarannot'!AH17","v":0},{"$f":"'d. henk.tietovarannot'!AI17","v":0},{"$f":"f.tietoturva_henk.tietovarannot!J17","v":0}]
[{"$f":"'d. henk.tietovarannot'!B18","v":0},{"$f":"'d. henk.tietovarannot'!U18","v":0},{"$f":"'d. henk.tietovarannot'!W18","v":0},{"$f":"'d. henk.tietovarannot'!X18","v":0},{"$f":"'d. henk.tietovarannot'!Y18","v":0},{"$f":"'d. henk.tietovarannot'!Z18","v":0},{"$f":"'d. henk.tietovarannot'!AA18","v":0},{"$f":"'d. henk.tietovarannot'!AB18","v":0},{"$f":"'d. henk.tietovarannot'!AC18","v":0},{"$f":"'d. henk.tietovarannot'!D18","v":" "},{"$f":"'d. henk.tietovarannot'!AE18","v":0},{"$f":"'d. henk.tietovarannot'!AH18","v":0},{"$f":"'d. henk.tietovarannot'!AI18","v":0},{"$f":"f.tietoturva_henk.tietovarannot!J18","v":0}]
[{"$f":"'d. henk.tietovarannot'!B19","v":0},{"$f":"'d. henk.tietovarannot'!U19","v":0},{"$f":"'d. henk.tietovarannot'!W19","v":0},{"$f":"'d. henk.tietovarannot'!X19","v":0},{"$f":"'d. henk.tietovarannot'!Y19","v":0},{"$f":"'d. henk.tietovarannot'!Z19","v":0},{"$f":"'d. henk.tietovarannot'!AA19","v":0},{"$f":"'d. henk.tietovarannot'!AB19","v":0},{"$f":"'d. henk.tietovarannot'!AC19","v":0},{"$f":"'d. henk.tietovarannot'!D19","v":" "},{"$f":"'d. henk.tietovarannot'!AE19","v":0},{"$f":"'d. henk.tietovarannot'!AH19","v":0},{"$f":"'d. henk.tietovarannot'!AI19","v":0},{"$f":"f.tietoturva_henk.tietovarannot!J19","v":0}]
[{"$f":"'d. henk.tietovarannot'!B20","v":0},{"$f":"'d. henk.tietovarannot'!U20","v":0},{"$f":"'d. henk.tietovarannot'!W20","v":0},{"$f":"'d. henk.tietovarannot'!X20","v":0},{"$f":"'d. henk.tietovarannot'!Y20","v":0},{"$f":"'d. henk.tietovarannot'!Z20","v":0},{"$f":"'d. henk.tietovarannot'!AA20","v":0},{"$f":"'d. henk.tietovarannot'!AB20","v":0},{"$f":"'d. henk.tietovarannot'!AC20","v":0},{"$f":"'d. henk.tietovarannot'!D20","v":" "},{"$f":"'d. henk.tietovarannot'!AE20","v":0},{"$f":"'d. henk.tietovarannot'!AH20","v":0},{"$f":"'d. henk.tietovarannot'!AI20","v":0},{"$f":"f.tietoturva_henk.tietovarannot!J20","v":0}]
[{"$f":"'d. henk.tietovarannot'!B21","v":0},{"$f":"'d. henk.tietovarannot'!U21","v":0},{"$f":"'d. henk.tietovarannot'!W21","v":0},{"$f":"'d. henk.tietovarannot'!X21","v":0},{"$f":"'d. henk.tietovarannot'!Y21","v":0},{"$f":"'d. henk.tietovarannot'!Z21","v":0},{"$f":"'d. henk.tietovarannot'!AA21","v":0},{"$f":"'d. henk.tietovarannot'!AB21","v":0},{"$f":"'d. henk.tietovarannot'!AC21","v":0},{"$f":"'d. henk.tietovarannot'!D21","v":" "},{"$f":"'d. henk.tietovarannot'!AE21","v":0},{"$f":"'d. henk.tietovarannot'!AH21","v":0},{"$f":"'d. henk.tietovarannot'!AI21","v":0},{"$f":"f.tietoturva_henk.tietovarannot!J21","v":0}]
[{"$f":"'d. henk.tietovarannot'!B22","v":0},{"$f":"'d. henk.tietovarannot'!U22","v":0},{"$f":"'d. henk.tietovarannot'!W22","v":0},{"$f":"'d. henk.tietovarannot'!X22","v":0},{"$f":"'d. henk.tietovarannot'!Y22","v":0},{"$f":"'d. henk.tietovarannot'!Z22","v":0},{"$f":"'d. henk.tietovarannot'!AA22","v":0},{"$f":"'d. henk.tietovarannot'!AB22","v":0},{"$f":"'d. henk.tietovarannot'!AC22","v":0},{"$f":"'d. henk.tietovarannot'!D22","v":" "},{"$f":"'d. henk.tietovarannot'!AE22","v":0},{"$f":"'d. henk.tietovarannot'!AH22","v":0},{"$f":"'d. henk.tietovarannot'!AI22","v":0},{"$f":"f.tietoturva_henk.tietovarannot!J22","v":0}]
[{"$f":"'d. henk.tietovarannot'!B23","v":0},{"$f":"'d. henk.tietovarannot'!U23","v":0},{"$f":"'d. henk.tietovarannot'!W23","v":0},{"$f":"'d. henk.tietovarannot'!X23","v":0},{"$f":"'d. henk.tietovarannot'!Y23","v":0},{"$f":"'d. henk.tietovarannot'!Z23","v":0},{"$f":"'d. henk.tietovarannot'!AA23","v":0},{"$f":"'d. henk.tietovarannot'!AB23","v":0},{"$f":"'d. henk.tietovarannot'!AC23","v":0},{"$f":"'d. henk.tietovarannot'!D23","v":" "},{"$f":"'d. henk.tietovarannot'!AE23","v":0},{"$f":"'d. henk.tietovarannot'!AH23","v":0},{"$f":"'d. henk.tietovarannot'!AI23","v":0},{"$f":"f.tietoturva_henk.tietovarannot!J23","v":0}]
[{"$f":"'d. henk.tietovarannot'!B24","v":0},{"$f":"'d. henk.tietovarannot'!U24","v":0},{"$f":"'d. henk.tietovarannot'!W24","v":0},{"$f":"'d. henk.tietovarannot'!X24","v":0},{"$f":"'d. henk.tietovarannot'!Y24","v":0},{"$f":"'d. henk.tietovarannot'!Z24","v":0},{"$f":"'d. henk.tietovarannot'!AA24","v":0},{"$f":"'d. henk.tietovarannot'!AB24","v":0},{"$f":"'d. henk.tietovarannot'!AC24","v":0},{"$f":"'d. henk.tietovarannot'!D24","v":" "},{"$f":"'d. henk.tietovarannot'!AE24","v":0},{"$f":"'d. henk.tietovarannot'!AH24","v":0},{"$f":"'d. henk.tietovarannot'!AI24","v":0},{"$f":"f.tietoturva_henk.tietovarannot!J24","v":0}]
[{"$f":"'d. henk.tietovarannot'!B25","v":0},{"$f":"'d. henk.tietovarannot'!U25","v":0},{"$f":"'d. henk.tietovarannot'!W25","v":0},{"$f":"'d. henk.tietovarannot'!X25","v":0},{"$f":"'d. henk.tietovarannot'!Y25","v":0},{"$f":"'d. henk.tietovarannot'!Z25","v":0},{"$f":"'d. henk.tietovarannot'!AA25","v":0},{"$f":"'d. henk.tietovarannot'!AB25","v":0},{"$f":"'d. henk.tietovarannot'!AC25","v":0},{"$f":"'d. henk.tietovarannot'!D25","v":" "},{"$f":"'d. henk.tietovarannot'!AE25","v":0},{"$f":"'d. henk.tietovarannot'!AH25","v":0},{"$f":"'d. henk.tietovarannot'!AI25","v":0},{"$f":"f.tietoturva_henk.tietovarannot!J25","v":0}]
[{"$f":"'d. henk.tietovarannot'!B26","v":0},{"$f":"'d. henk.tietovarannot'!U26","v":0},{"$f":"'d. henk.tietovarannot'!W26","v":0},{"$f":"'d. henk.tietovarannot'!X26","v":0},{"$f":"'d. henk.tietovarannot'!Y26","v":0},{"$f":"'d. henk.tietovarannot'!Z26","v":0},{"$f":"'d. henk.tietovarannot'!AA26","v":0},{"$f":"'d. henk.tietovarannot'!AB26","v":0},{"$f":"'d. henk.tietovarannot'!AC26","v":0},{"$f":"'d. henk.tietovarannot'!D26","v":" "},{"$f":"'d. henk.tietovarannot'!AE26","v":0},{"$f":"'d. henk.tietovarannot'!AH26","v":0},{"$f":"'d. henk.tietovarannot'!AI26","v":0},{"$f":"f.tietoturva_henk.tietovarannot!J26","v":0}]
[{"$f":"'d. henk.tietovarannot'!B27","v":0},{"$f":"'d. henk.tietovarannot'!U27","v":0},{"$f":"'d. henk.tietovarannot'!W27","v":0},{"$f":"'d. henk.tietovarannot'!X27","v":0},{"$f":"'d. henk.tietovarannot'!Y27","v":0},{"$f":"'d. henk.tietovarannot'!Z27","v":0},{"$f":"'d. henk.tietovarannot'!AA27","v":0},{"$f":"'d. henk.tietovarannot'!AB27","v":0},{"$f":"'d. henk.tietovarannot'!AC27","v":0},{"$f":"'d. henk.tietovarannot'!D27","v":" "},{"$f":"'d. henk.tietovarannot'!AE27","v":0},{"$f":"'d. henk.tietovarannot'!AH27","v":0},{"$f":"'d. henk.tietovarannot'!AI27","v":0},{"$f":"f.tietoturva_henk.tietovarannot!J27","v":0}]
[{"$f":"'d. henk.tietovarannot'!B28","v":0},{"$f":"'d. henk.tietovarannot'!U28","v":0},{"$f":"'d. henk.tietovarannot'!W28","v":0},{"$f":"'d. henk.tietovarannot'!X28","v":0},{"$f":"'d. henk.tietovarannot'!Y28","v":0},{"$f":"'d. henk.tietovarannot'!Z28","v":0},{"$f":"'d. henk.tietovarannot'!AA28","v":0},{"$f":"'d. henk.tietovarannot'!AB28","v":0},{"$f":"'d. henk.tietovarannot'!AC28","v":0},{"$f":"'d. henk.tietovarannot'!D28","v":" "},{"$f":"'d. henk.tietovarannot'!AE28","v":0},{"$f":"'d. henk.tietovarannot'!AH28","v":0},{"$f":"'d. henk.tietovarannot'!AI28","v":0},{"$f":"f.tietoturva_henk.tietovarannot!J28","v":0}]
[{"$f":"'d. henk.tietovarannot'!B29","v":0},{"$f":"'d. henk.tietovarannot'!U29","v":0},{"$f":"'d. henk.tietovarannot'!W29","v":0},{"$f":"'d. henk.tietovarannot'!X29","v":0},{"$f":"'d. henk.tietovarannot'!Y29","v":0},{"$f":"'d. henk.tietovarannot'!Z29","v":0},{"$f":"'d. henk.tietovarannot'!AA29","v":0},{"$f":"'d. henk.tietovarannot'!AB29","v":0},{"$f":"'d. henk.tietovarannot'!AC29","v":0},{"$f":"'d. henk.tietovarannot'!D29","v":" "},{"$f":"'d. henk.tietovarannot'!AE29","v":0},{"$f":"'d. henk.tietovarannot'!AH29","v":0},{"$f":"'d. henk.tietovarannot'!AI29","v":0},{"$f":"f.tietoturva_henk.tietovarannot!J29","v":0}]
[{"$f":"'d. henk.tietovarannot'!B30","v":" "},{"$f":"'d. henk.tietovarannot'!U30","v":0},{"$f":"'d. henk.tietovarannot'!W30","v":0},{"$f":"'d. henk.tietovarannot'!X30","v":0},{"$f":"'d. henk.tietovarannot'!Y30","v":0},{"$f":"'d. henk.tietovarannot'!Z30","v":0},{"$f":"'d. henk.tietovarannot'!AA30","v":0},{"$f":"'d. henk.tietovarannot'!AB30","v":0},{"$f":"'d. henk.tietovarannot'!AC30","v":0},{"$f":"'d. henk.tietovarannot'!D30","v":" "},{"$f":"'d. henk.tietovarannot'!AE30","v":0},{"$f":"'d. henk.tietovarannot'!AH30","v":0},{"$f":"'d. henk.tietovarannot'!AI30","v":0},{"$f":"f.tietoturva_henk.tietovarannot!J30","v":0}]
[{"$f":"'d. henk.tietovarannot'!B31","v":" "},{"$f":"'d. henk.tietovarannot'!U31","v":0},{"$f":"'d. henk.tietovarannot'!W31","v":0},{"$f":"'d. henk.tietovarannot'!X31","v":0},{"$f":"'d. henk.tietovarannot'!Y31","v":0},{"$f":"'d. henk.tietovarannot'!Z31","v":0},{"$f":"'d. henk.tietovarannot'!AA31","v":0},{"$f":"'d. henk.tietovarannot'!AB31","v":0},{"$f":"'d. henk.tietovarannot'!AC31","v":0},{"$f":"'d. henk.tietovarannot'!D31","v":" "},{"$f":"'d. henk.tietovarannot'!AE31","v":0},{"$f":"'d. henk.tietovarannot'!AH31","v":0},{"$f":"'d. henk.tietovarannot'!AI31","v":0},{"$f":"f.tietoturva_henk.tietovarannot!J31","v":0}]
[{"$f":"'d. henk.tietovarannot'!B32","v":" "},{"$f":"'d. henk.tietovarannot'!U32","v":0},{"$f":"'d. henk.tietovarannot'!W32","v":0},{"$f":"'d. henk.tietovarannot'!X32","v":0},{"$f":"'d. henk.tietovarannot'!Y32","v":0},{"$f":"'d. henk.tietovarannot'!Z32","v":0},{"$f":"'d. henk.tietovarannot'!AA32","v":0},{"$f":"'d. henk.tietovarannot'!AB32","v":0},{"$f":"'d. henk.tietovarannot'!AC32","v":0},{"$f":"'d. henk.tietovarannot'!D32","v":" "},{"$f":"'d. henk.tietovarannot'!AE32","v":0},{"$f":"'d. henk.tietovarannot'!AH32","v":0},{"$f":"'d. henk.tietovarannot'!AI32","v":0},{"$f":"f.tietoturva_henk.tietovarannot!J32","v":0}]
[{"$f":"'d. henk.tietovarannot'!B33","v":" "},{"$f":"'d. henk.tietovarannot'!U33","v":0},{"$f":"'d. henk.tietovarannot'!W33","v":0},{"$f":"'d. henk.tietovarannot'!X33","v":0},{"$f":"'d. henk.tietovarannot'!Y33","v":0},{"$f":"'d. henk.tietovarannot'!Z33","v":0},{"$f":"'d. henk.tietovarannot'!AA33","v":0},{"$f":"'d. henk.tietovarannot'!AB33","v":0},{"$f":"'d. henk.tietovarannot'!AC33","v":0},{"$f":"'d. henk.tietovarannot'!D33","v":" "},{"$f":"'d. henk.tietovarannot'!AE33","v":0},{"$f":"'d. henk.tietovarannot'!AH33","v":0},{"$f":"'d. henk.tietovarannot'!AI33","v":0},{"$f":"f.tietoturva_henk.tietovarannot!J33","v":0}]
[{"$f":"'d. henk.tietovarannot'!B34","v":" "},{"$f":"'d. henk.tietovarannot'!U34","v":0},{"$f":"'d. henk.tietovarannot'!W34","v":0},{"$f":"'d. henk.tietovarannot'!X34","v":0},{"$f":"'d. henk.tietovarannot'!Y34","v":0},{"$f":"'d. henk.tietovarannot'!Z34","v":0},{"$f":"'d. henk.tietovarannot'!AA34","v":0},{"$f":"'d. henk.tietovarannot'!AB34","v":0},{"$f":"'d. henk.tietovarannot'!AC34","v":0},{"$f":"'d. henk.tietovarannot'!D34","v":" "},{"$f":"'d. henk.tietovarannot'!AE34","v":0},{"$f":"'d. henk.tietovarannot'!AH34","v":0},{"$f":"'d. henk.tietovarannot'!AI34","v":0},{"$f":"f.tietoturva_henk.tietovarannot!J34","v":0}]
[{"$f":"'d. henk.tietovarannot'!B35","v":" "},{"$f":"'d. henk.tietovarannot'!U35","v":0},{"$f":"'d. henk.tietovarannot'!W35","v":0},{"$f":"'d. henk.tietovarannot'!X35","v":0},{"$f":"'d. henk.tietovarannot'!Y35","v":0},{"$f":"'d. henk.tietovarannot'!Z35","v":0},{"$f":"'d. henk.tietovarannot'!AA35","v":0},{"$f":"'d. henk.tietovarannot'!AB35","v":0},{"$f":"'d. henk.tietovarannot'!AC35","v":0},{"$f":"'d. henk.tietovarannot'!D35","v":" "},{"$f":"'d. henk.tietovarannot'!AE35","v":0},{"$f":"'d. henk.tietovarannot'!AH35","v":0},{"$f":"'d. henk.tietovarannot'!AI35","v":0},{"$f":"f.tietoturva_henk.tietovarannot!J35","v":0}]
[{"$f":"'d. henk.tietovarannot'!B36","v":" "},{"$f":"'d. henk.tietovarannot'!U36","v":0},{"$f":"'d. henk.tietovarannot'!W36","v":0},{"$f":"'d. henk.tietovarannot'!X36","v":0},{"$f":"'d. henk.tietovarannot'!Y36","v":0},{"$f":"'d. henk.tietovarannot'!Z36","v":0},{"$f":"'d. henk.tietovarannot'!AA36","v":0},{"$f":"'d. henk.tietovarannot'!AB36","v":0},{"$f":"'d. henk.tietovarannot'!AC36","v":0},{"$f":"'d. henk.tietovarannot'!D36","v":" "},{"$f":"'d. henk.tietovarannot'!AE36","v":0},{"$f":"'d. henk.tietovarannot'!AH36","v":0},{"$f":"'d. henk.tietovarannot'!AI36","v":0},{"$f":"f.tietoturva_henk.tietovarannot!J36","v":0}]
[{"$f":"'d. henk.tietovarannot'!B37","v":" "},{"$f":"'d. henk.tietovarannot'!U37","v":0},{"$f":"'d. henk.tietovarannot'!W37","v":0},{"$f":"'d. henk.tietovarannot'!X37","v":0},{"$f":"'d. henk.tietovarannot'!Y37","v":0},{"$f":"'d. henk.tietovarannot'!Z37","v":0},{"$f":"'d. henk.tietovarannot'!AA37","v":0},{"$f":"'d. henk.tietovarannot'!AB37","v":0},{"$f":"'d. henk.tietovarannot'!AC37","v":0},{"$f":"'d. henk.tietovarannot'!D37","v":" "},{"$f":"'d. henk.tietovarannot'!AE37","v":0},{"$f":"'d. henk.tietovarannot'!AH37","v":0},{"$f":"'d. henk.tietovarannot'!AI37","v":0},{"$f":"f.tietoturva_henk.tietovarannot!J37","v":0}]
[{"$f":"'d. henk.tietovarannot'!B38","v":" "},{"$f":"'d. henk.tietovarannot'!U38","v":0},{"$f":"'d. henk.tietovarannot'!W38","v":0},{"$f":"'d. henk.tietovarannot'!X38","v":0},{"$f":"'d. henk.tietovarannot'!Y38","v":0},{"$f":"'d. henk.tietovarannot'!Z38","v":0},{"$f":"'d. henk.tietovarannot'!AA38","v":0},{"$f":"'d. henk.tietovarannot'!AB38","v":0},{"$f":"'d. henk.tietovarannot'!AC38","v":0},{"$f":"'d. henk.tietovarannot'!D38","v":" "},{"$f":"'d. henk.tietovarannot'!AE38","v":0},{"$f":"'d. henk.tietovarannot'!AH38","v":0},{"$f":"'d. henk.tietovarannot'!AI38","v":0},{"$f":"f.tietoturva_henk.tietovarannot!J38","v":0}]
[{"$f":"'d. henk.tietovarannot'!B39","v":" "},{"$f":"'d. henk.tietovarannot'!U39","v":0},{"$f":"'d. henk.tietovarannot'!W39","v":0},{"$f":"'d. henk.tietovarannot'!X39","v":0},{"$f":"'d. henk.tietovarannot'!Y39","v":0},{"$f":"'d. henk.tietovarannot'!Z39","v":0},{"$f":"'d. henk.tietovarannot'!AA39","v":0},{"$f":"'d. henk.tietovarannot'!AB39","v":0},{"$f":"'d. henk.tietovarannot'!AC39","v":0},{"$f":"'d. henk.tietovarannot'!D39","v":" "},{"$f":"'d. henk.tietovarannot'!AE39","v":0},{"$f":"'d. henk.tietovarannot'!AH39","v":0},{"$f":"'d. henk.tietovarannot'!AI39","v":0},{"$f":"f.tietoturva_henk.tietovarannot!J39","v":0}]
[{"$f":"'d. henk.tietovarannot'!B40","v":" "},{"$f":"'d. henk.tietovarannot'!U40","v":0},{"$f":"'d. henk.tietovarannot'!W40","v":0},{"$f":"'d. henk.tietovarannot'!X40","v":0},{"$f":"'d. henk.tietovarannot'!Y40","v":0},{"$f":"'d. henk.tietovarannot'!Z40","v":0},{"$f":"'d. henk.tietovarannot'!AA40","v":0},{"$f":"'d. henk.tietovarannot'!AB40","v":0},{"$f":"'d. henk.tietovarannot'!AC40","v":0},{"$f":"'d. henk.tietovarannot'!D40","v":" "},{"$f":"'d. henk.tietovarannot'!AE40","v":0},{"$f":"'d. henk.tietovarannot'!AH40","v":0},{"$f":"'d. henk.tietovarannot'!AI40","v":0},{"$f":"f.tietoturva_henk.tietovarannot!J40","v":0}]
[{"$f":"'d. henk.tietovarannot'!B41","v":" "},{"$f":"'d. henk.tietovarannot'!U41","v":0},{"$f":"'d. henk.tietovarannot'!W41","v":0},{"$f":"'d. henk.tietovarannot'!X41","v":0},{"$f":"'d. henk.tietovarannot'!Y41","v":0},{"$f":"'d. henk.tietovarannot'!Z41","v":0},{"$f":"'d. henk.tietovarannot'!AA41","v":0},{"$f":"'d. henk.tietovarannot'!AB41","v":0},{"$f":"'d. henk.tietovarannot'!AC41","v":0},{"$f":"'d. henk.tietovarannot'!D41","v":" "},{"$f":"'d. henk.tietovarannot'!AE41","v":0},{"$f":"'d. henk.tietovarannot'!AH41","v":0},{"$f":"'d. henk.tietovarannot'!AI41","v":0},{"$f":"f.tietoturva_henk.tietovarannot!J41","v":0}]
[{"$f":"'d. henk.tietovarannot'!B42","v":" "},{"$f":"'d. henk.tietovarannot'!U42","v":0},{"$f":"'d. henk.tietovarannot'!W42","v":0},{"$f":"'d. henk.tietovarannot'!X42","v":0},{"$f":"'d. henk.tietovarannot'!Y42","v":0},{"$f":"'d. henk.tietovarannot'!Z42","v":0},{"$f":"'d. henk.tietovarannot'!AA42","v":0},{"$f":"'d. henk.tietovarannot'!AB42","v":0},{"$f":"'d. henk.tietovarannot'!AC42","v":0},{"$f":"'d. henk.tietovarannot'!D42","v":" "},{"$f":"'d. henk.tietovarannot'!AE42","v":0},{"$f":"'d. henk.tietovarannot'!AH42","v":0},{"$f":"'d. henk.tietovarannot'!AI42","v":0},{"$f":"f.tietoturva_henk.tietovarannot!J42","v":0}]
[{"$f":"'d. henk.tietovarannot'!B43","v":" "},{"$f":"'d. henk.tietovarannot'!U43","v":0},{"$f":"'d. henk.tietovarannot'!W43","v":0},{"$f":"'d. henk.tietovarannot'!X43","v":0},{"$f":"'d. henk.tietovarannot'!Y43","v":0},{"$f":"'d. henk.tietovarannot'!Z43","v":0},{"$f":"'d. henk.tietovarannot'!AA43","v":0},{"$f":"'d. henk.tietovarannot'!AB43","v":0},{"$f":"'d. henk.tietovarannot'!AC43","v":0},{"$f":"'d. henk.tietovarannot'!D43","v":" "},{"$f":"'d. henk.tietovarannot'!AE43","v":0},{"$f":"'d. henk.tietovarannot'!AH43","v":0},{"$f":"'d. henk.tietovarannot'!AI43","v":0},{"$f":"f.tietoturva_henk.tietovarannot!J43","v":0}]
[{"$f":"'d. henk.tietovarannot'!B44","v":" "},{"$f":"'d. henk.tietovarannot'!U44","v":0},{"$f":"'d. henk.tietovarannot'!W44","v":0},{"$f":"'d. henk.tietovarannot'!X44","v":0},{"$f":"'d. henk.tietovarannot'!Y44","v":0},{"$f":"'d. henk.tietovarannot'!Z44","v":0},{"$f":"'d. henk.tietovarannot'!AA44","v":0},{"$f":"'d. henk.tietovarannot'!AB44","v":0},{"$f":"'d. henk.tietovarannot'!AC44","v":0},{"$f":"'d. henk.tietovarannot'!D44","v":" "},{"$f":"'d. henk.tietovarannot'!AE44","v":0},{"$f":"'d. henk.tietovarannot'!AH44","v":0},{"$f":"'d. henk.tietovarannot'!AI44","v":0},{"$f":"f.tietoturva_henk.tietovarannot!J44","v":0}]
[{"$f":"'d. henk.tietovarannot'!B45","v":" "},{"$f":"'d. henk.tietovarannot'!U45","v":0},{"$f":"'d. henk.tietovarannot'!W45","v":0},{"$f":"'d. henk.tietovarannot'!X45","v":0},{"$f":"'d. henk.tietovarannot'!Y45","v":0},{"$f":"'d. henk.tietovarannot'!Z45","v":0},{"$f":"'d. henk.tietovarannot'!AA45","v":0},{"$f":"'d. henk.tietovarannot'!AB45","v":0},{"$f":"'d. henk.tietovarannot'!AC45","v":0},{"$f":"'d. henk.tietovarannot'!D45","v":" "},{"$f":"'d. henk.tietovarannot'!AE45","v":0},{"$f":"'d. henk.tietovarannot'!AH45","v":0},{"$f":"'d. henk.tietovarannot'!AI45","v":0},{"$f":"f.tietoturva_henk.tietovarannot!J45","v":0}]
[{"$f":"'d. henk.tietovarannot'!B46","v":" "},{"$f":"'d. henk.tietovarannot'!U46","v":0},{"$f":"'d. henk.tietovarannot'!W46","v":0},{"$f":"'d. henk.tietovarannot'!X46","v":0},{"$f":"'d. henk.tietovarannot'!Y46","v":0},{"$f":"'d. henk.tietovarannot'!Z46","v":0},{"$f":"'d. henk.tietovarannot'!AA46","v":0},{"$f":"'d. henk.tietovarannot'!AB46","v":0},{"$f":"'d. henk.tietovarannot'!AC46","v":0},{"$f":"'d. henk.tietovarannot'!D46","v":" "},{"$f":"'d. henk.tietovarannot'!AE46","v":0},{"$f":"'d. henk.tietovarannot'!AH46","v":0},{"$f":"'d. henk.tietovarannot'!AI46","v":0},{"$f":"f.tietoturva_henk.tietovarannot!J46","v":0}]
[{"$f":"'d. henk.tietovarannot'!B47","v":" "},{"$f":"'d. henk.tietovarannot'!U47","v":0},{"$f":"'d. henk.tietovarannot'!W47","v":0},{"$f":"'d. henk.tietovarannot'!X47","v":0},{"$f":"'d. henk.tietovarannot'!Y47","v":0},{"$f":"'d. henk.tietovarannot'!Z47","v":0},{"$f":"'d. henk.tietovarannot'!AA47","v":0},{"$f":"'d. henk.tietovarannot'!AB47","v":0},{"$f":"'d. henk.tietovarannot'!AC47","v":0},{"$f":"'d. henk.tietovarannot'!D47","v":" "},{"$f":"'d. henk.tietovarannot'!AE47","v":0},{"$f":"'d. henk.tietovarannot'!AH47","v":0},{"$f":"'d. henk.tietovarannot'!AI47","v":0},{"$f":"f.tietoturva_henk.tietovarannot!J47","v":0}]
[{"$f":"'d. henk.tietovarannot'!B48","v":0},{"$f":"'d. henk.tietovarannot'!U48","v":0},{"$f":"'d. henk.tietovarannot'!W48","v":0},{"$f":"'d. henk.tietovarannot'!X48","v":0},{"$f":"'d. henk.tietovarannot'!Y48","v":0},{"$f":"'d. henk.tietovarannot'!Z48","v":0},{"$f":"'d. henk.tietovarannot'!AA48","v":0},{"$f":"'d. henk.tietovarannot'!AB48","v":0},{"$f":"'d. henk.tietovarannot'!AC48","v":0},{"$f":"'d. henk.tietovarannot'!D48","v":0},{"$f":"'d. henk.tietovarannot'!AE48","v":0},{"$f":"'d. henk.tietovarannot'!AH48","v":0},{"$f":"'d. henk.tietovarannot'!AI48","v":0},{"$f":"f.tietoturva_henk.tietovarannot!J48","v":0}]
[{"$f":"'d. henk.tietovarannot'!B49","v":0},{"$f":"'d. henk.tietovarannot'!U49","v":0},{"$f":"'d. henk.tietovarannot'!W49","v":0},{"$f":"'d. henk.tietovarannot'!X49","v":0},{"$f":"'d. henk.tietovarannot'!Y49","v":0},{"$f":"'d. henk.tietovarannot'!Z49","v":0},{"$f":"'d. henk.tietovarannot'!AA49","v":0},{"$f":"'d. henk.tietovarannot'!AB49","v":0},{"$f":"'d. henk.tietovarannot'!AC49","v":0},{"$f":"'d. henk.tietovarannot'!D49","v":0},{"$f":"'d. henk.tietovarannot'!AE49","v":0},{"$f":"'d. henk.tietovarannot'!AH49","v":0},{"$f":"'d. henk.tietovarannot'!AI49","v":0},{"$f":"f.tietoturva_henk.tietovarannot!J49","v":0}]
[{"$f":"'d. henk.tietovarannot'!B50","v":0},{"$f":"'d. henk.tietovarannot'!U50","v":0},{"$f":"'d. henk.tietovarannot'!W50","v":0},{"$f":"'d. henk.tietovarannot'!X50","v":0},{"$f":"'d. henk.tietovarannot'!Y50","v":0},{"$f":"'d. henk.tietovarannot'!Z50","v":0},{"$f":"'d. henk.tietovarannot'!AA50","v":0},{"$f":"'d. henk.tietovarannot'!AB50","v":0},{"$f":"'d. henk.tietovarannot'!AC50","v":0},{"$f":"'d. henk.tietovarannot'!D50","v":0},{"$f":"'d. henk.tietovarannot'!AE50","v":0},{"$f":"'d. henk.tietovarannot'!AH50","v":0},{"$f":"'d. henk.tietovarannot'!AI50","v":0},{"$f":"f.tietoturva_henk.tietovarannot!J50","v":0}]
[{"$f":"'d. henk.tietovarannot'!B51","v":0},{"$f":"'d. henk.tietovarannot'!U51","v":0},{"$f":"'d. henk.tietovarannot'!W51","v":0},{"$f":"'d. henk.tietovarannot'!X51","v":0},{"$f":"'d. henk.tietovarannot'!Y51","v":0},{"$f":"'d. henk.tietovarannot'!Z51","v":0},{"$f":"'d. henk.tietovarannot'!AA51","v":0},{"$f":"'d. henk.tietovarannot'!AB51","v":0},{"$f":"'d. henk.tietovarannot'!AC51","v":0},{"$f":"'d. henk.tietovarannot'!D51","v":0},{"$f":"'d. henk.tietovarannot'!AE51","v":0},{"$f":"'d. henk.tietovarannot'!AH51","v":0},{"$f":"'d. henk.tietovarannot'!AI51","v":0},{"$f":"f.tietoturva_henk.tietovarannot!J51","v":0}]
[{"$f":"'d. henk.tietovarannot'!B52","v":0},{"$f":"'d. henk.tietovarannot'!U52","v":0},{"$f":"'d. henk.tietovarannot'!W52","v":0},{"$f":"'d. henk.tietovarannot'!X52","v":0},{"$f":"'d. henk.tietovarannot'!Y52","v":0},{"$f":"'d. henk.tietovarannot'!Z52","v":0},{"$f":"'d. henk.tietovarannot'!AA52","v":0},{"$f":"'d. henk.tietovarannot'!AB52","v":0},{"$f":"'d. henk.tietovarannot'!AC52","v":0},{"$f":"'d. henk.tietovarannot'!D52","v":0},{"$f":"'d. henk.tietovarannot'!AE52","v":0},{"$f":"'d. henk.tietovarannot'!AH52","v":0},{"$f":"'d. henk.tietovarannot'!AI52","v":0},{"$f":"f.tietoturva_henk.tietovarannot!J52","v":0}]
[{"$f":"'d. henk.tietovarannot'!B53","v":0},{"$f":"'d. henk.tietovarannot'!U53","v":0},{"$f":"'d. henk.tietovarannot'!W53","v":0},{"$f":"'d. henk.tietovarannot'!X53","v":0},{"$f":"'d. henk.tietovarannot'!Y53","v":0},{"$f":"'d. henk.tietovarannot'!Z53","v":0},{"$f":"'d. henk.tietovarannot'!AA53","v":0},{"$f":"'d. henk.tietovarannot'!AB53","v":0},{"$f":"'d. henk.tietovarannot'!AC53","v":0},{"$f":"'d. henk.tietovarannot'!D53","v":0},{"$f":"'d. henk.tietovarannot'!AE53","v":0},{"$f":"'d. henk.tietovarannot'!AH53","v":0},{"$f":"'d. henk.tietovarannot'!AI53","v":0},{"$f":"f.tietoturva_henk.tietovarannot!J53","v":0}]
[{"$f":"'d. henk.tietovarannot'!B54","v":0},{"$f":"'d. henk.tietovarannot'!U54","v":0},{"$f":"'d. henk.tietovarannot'!W54","v":0},{"$f":"'d. henk.tietovarannot'!X54","v":0},{"$f":"'d. henk.tietovarannot'!Y54","v":0},{"$f":"'d. henk.tietovarannot'!Z54","v":0},{"$f":"'d. henk.tietovarannot'!AA54","v":0},{"$f":"'d. henk.tietovarannot'!AB54","v":0},{"$f":"'d. henk.tietovarannot'!AC54","v":0},{"$f":"'d. henk.tietovarannot'!D54","v":0},{"$f":"'d. henk.tietovarannot'!AE54","v":0},{"$f":"'d. henk.tietovarannot'!AH54","v":0},{"$f":"'d. henk.tietovarannot'!AI54","v":0},{"$f":"f.tietoturva_henk.tietovarannot!J54","v":0}]
[{"$f":"'d. henk.tietovarannot'!B55","v":0},{"$f":"'d. henk.tietovarannot'!U55","v":0},{"$f":"'d. henk.tietovarannot'!W55","v":0},{"$f":"'d. henk.tietovarannot'!X55","v":0},{"$f":"'d. henk.tietovarannot'!Y55","v":0},{"$f":"'d. henk.tietovarannot'!Z55","v":0},{"$f":"'d. henk.tietovarannot'!AA55","v":0},{"$f":"'d. henk.tietovarannot'!AB55","v":0},{"$f":"'d. henk.tietovarannot'!AC55","v":0},{"$f":"'d. henk.tietovarannot'!D55","v":0},{"$f":"'d. henk.tietovarannot'!AE55","v":0},{"$f":"'d. henk.tietovarannot'!AH55","v":0},{"$f":"'d. henk.tietovarannot'!AI55","v":0},{"$f":"f.tietoturva_henk.tietovarannot!J55","v":0}]
[{"$f":"'d. henk.tietovarannot'!B56","v":0},{"$f":"'d. henk.tietovarannot'!U56","v":0},{"$f":"'d. henk.tietovarannot'!W56","v":0},{"$f":"'d. henk.tietovarannot'!X56","v":0},{"$f":"'d. henk.tietovarannot'!Y56","v":0},{"$f":"'d. henk.tietovarannot'!Z56","v":0},{"$f":"'d. henk.tietovarannot'!AA56","v":0},{"$f":"'d. henk.tietovarannot'!AB56","v":0},{"$f":"'d. henk.tietovarannot'!AC56","v":0},{"$f":"'d. henk.tietovarannot'!D56","v":0},{"$f":"'d. henk.tietovarannot'!AE56","v":0},{"$f":"'d. henk.tietovarannot'!AH56","v":0},{"$f":"'d. henk.tietovarannot'!AI56","v":0},{"$f":"f.tietoturva_henk.tietovarannot!J56","v":0}]
[{"$f":"'d. henk.tietovarannot'!B57","v":0},{"$f":"'d. henk.tietovarannot'!U57","v":0},{"$f":"'d. henk.tietovarannot'!W57","v":0},{"$f":"'d. henk.tietovarannot'!X57","v":0},{"$f":"'d. henk.tietovarannot'!Y57","v":0},{"$f":"'d. henk.tietovarannot'!Z57","v":0},{"$f":"'d. henk.tietovarannot'!AA57","v":0},{"$f":"'d. henk.tietovarannot'!AB57","v":0},{"$f":"'d. henk.tietovarannot'!AC57","v":0},{"$f":"'d. henk.tietovarannot'!D57","v":0},{"$f":"'d. henk.tietovarannot'!AE57","v":0},{"$f":"'d. henk.tietovarannot'!AH57","v":0},{"$f":"'d. henk.tietovarannot'!AI57","v":0},{"$f":"f.tietoturva_henk.tietovarannot!J57","v":0}]
[{"$f":"'d. henk.tietovarannot'!B58","v":0},{"$f":"'d. henk.tietovarannot'!U58","v":0},{"$f":"'d. henk.tietovarannot'!W58","v":0},{"$f":"'d. henk.tietovarannot'!X58","v":0},{"$f":"'d. henk.tietovarannot'!Y58","v":0},{"$f":"'d. henk.tietovarannot'!Z58","v":0},{"$f":"'d. henk.tietovarannot'!AA58","v":0},{"$f":"'d. henk.tietovarannot'!AB58","v":0},{"$f":"'d. henk.tietovarannot'!AC58","v":0},{"$f":"'d. henk.tietovarannot'!D58","v":0},{"$f":"'d. henk.tietovarannot'!AE58","v":0},{"$f":"'d. henk.tietovarannot'!AH58","v":0},{"$f":"'d. henk.tietovarannot'!AI58","v":0},{"$f":"f.tietoturva_henk.tietovarannot!J58","v":0}]
[{"$f":"'d. henk.tietovarannot'!B59","v":0},{"$f":"'d. henk.tietovarannot'!U59","v":0},{"$f":"'d. henk.tietovarannot'!W59","v":0},{"$f":"'d. henk.tietovarannot'!X59","v":0},{"$f":"'d. henk.tietovarannot'!Y59","v":0},{"$f":"'d. henk.tietovarannot'!Z59","v":0},{"$f":"'d. henk.tietovarannot'!AA59","v":0},{"$f":"'d. henk.tietovarannot'!AB59","v":0},{"$f":"'d. henk.tietovarannot'!AC59","v":0},{"$f":"'d. henk.tietovarannot'!D59","v":0},{"$f":"'d. henk.tietovarannot'!AE59","v":0},{"$f":"'d. henk.tietovarannot'!AH59","v":0},{"$f":"'d. henk.tietovarannot'!AI59","v":0},{"$f":"f.tietoturva_henk.tietovarannot!J59","v":0}]
[{"$f":"'d. henk.tietovarannot'!B60","v":0},{"$f":"'d. henk.tietovarannot'!U60","v":0},{"$f":"'d. henk.tietovarannot'!W60","v":0},{"$f":"'d. henk.tietovarannot'!X60","v":0},{"$f":"'d. henk.tietovarannot'!Y60","v":0},{"$f":"'d. henk.tietovarannot'!Z60","v":0},{"$f":"'d. henk.tietovarannot'!AA60","v":0},{"$f":"'d. henk.tietovarannot'!AB60","v":0},{"$f":"'d. henk.tietovarannot'!AC60","v":0},{"$f":"'d. henk.tietovarannot'!D60","v":0},{"$f":"'d. henk.tietovarannot'!AE60","v":0},{"$f":"'d. henk.tietovarannot'!AH60","v":0},{"$f":"'d. henk.tietovarannot'!AI60","v":0},{"$f":"f.tietoturva_henk.tietovarannot!J60","v":0}]
[{"$f":"'d. henk.tietovarannot'!B61","v":0},{"$f":"'d. henk.tietovarannot'!U61","v":0},{"$f":"'d. henk.tietovarannot'!W61","v":0},{"$f":"'d. henk.tietovarannot'!X61","v":0},{"$f":"'d. henk.tietovarannot'!Y61","v":0},{"$f":"'d. henk.tietovarannot'!Z61","v":0},{"$f":"'d. henk.tietovarannot'!AA61","v":0},{"$f":"'d. henk.tietovarannot'!AB61","v":0},{"$f":"'d. henk.tietovarannot'!AC61","v":0},{"$f":"'d. henk.tietovarannot'!D61","v":0},{"$f":"'d. henk.tietovarannot'!AE61","v":0},{"$f":"'d. henk.tietovarannot'!AH61","v":0},{"$f":"'d. henk.tietovarannot'!AI61","v":0},{"$f":"f.tietoturva_henk.tietovarannot!J61","v":0}]
[{"$f":"'d. henk.tietovarannot'!B62","v":0},{"$f":"'d. henk.tietovarannot'!U62","v":0},{"$f":"'d. henk.tietovarannot'!W62","v":0},{"$f":"'d. henk.tietovarannot'!X62","v":0},{"$f":"'d. henk.tietovarannot'!Y62","v":0},{"$f":"'d. henk.tietovarannot'!Z62","v":0},{"$f":"'d. henk.tietovarannot'!AA62","v":0},{"$f":"'d. henk.tietovarannot'!AB62","v":0},{"$f":"'d. henk.tietovarannot'!AC62","v":0},{"$f":"'d. henk.tietovarannot'!D62","v":0},{"$f":"'d. henk.tietovarannot'!AE62","v":0},{"$f":"'d. henk.tietovarannot'!AH62","v":0},{"$f":"'d. henk.tietovarannot'!AI62","v":0},{"$f":"f.tietoturva_henk.tietovarannot!J62","v":0}]
[{"$f":"'d. henk.tietovarannot'!B63","v":0},{"$f":"'d. henk.tietovarannot'!U63","v":0},{"$f":"'d. henk.tietovarannot'!W63","v":0},{"$f":"'d. henk.tietovarannot'!X63","v":0},{"$f":"'d. henk.tietovarannot'!Y63","v":0},{"$f":"'d. henk.tietovarannot'!Z63","v":0},{"$f":"'d. henk.tietovarannot'!AA63","v":0},{"$f":"'d. henk.tietovarannot'!AB63","v":0},{"$f":"'d. henk.tietovarannot'!AC63","v":0},{"$f":"'d. henk.tietovarannot'!D63","v":0},{"$f":"'d. henk.tietovarannot'!AE63","v":0},{"$f":"'d. henk.tietovarannot'!AH63","v":0},{"$f":"'d. henk.tietovarannot'!AI63","v":0},{"$f":"f.tietoturva_henk.tietovarannot!J63","v":0}]
[{"$f":"'d. henk.tietovarannot'!B64","v":0},{"$f":"'d. henk.tietovarannot'!U64","v":0},{"$f":"'d. henk.tietovarannot'!W64","v":0},{"$f":"'d. henk.tietovarannot'!X64","v":0},{"$f":"'d. henk.tietovarannot'!Y64","v":0},{"$f":"'d. henk.tietovarannot'!Z64","v":0},{"$f":"'d. henk.tietovarannot'!AA64","v":0},{"$f":"'d. henk.tietovarannot'!AB64","v":0},{"$f":"'d. henk.tietovarannot'!AC64","v":0},{"$f":"'d. henk.tietovarannot'!D64","v":0},{"$f":"'d. henk.tietovarannot'!AE64","v":0},{"$f":"'d. henk.tietovarannot'!AH64","v":0},{"$f":"'d. henk.tietovarannot'!AI64","v":0},{"$f":"f.tietoturva_henk.tietovarannot!J64","v":0}]
[{"$f":"'d. henk.tietovarannot'!B65","v":0},{"$f":"'d. henk.tietovarannot'!U65","v":0},{"$f":"'d. henk.tietovarannot'!W65","v":0},{"$f":"'d. henk.tietovarannot'!X65","v":0},{"$f":"'d. henk.tietovarannot'!Y65","v":0},{"$f":"'d. henk.tietovarannot'!Z65","v":0},{"$f":"'d. henk.tietovarannot'!AA65","v":0},{"$f":"'d. henk.tietovarannot'!AB65","v":0},{"$f":"'d. henk.tietovarannot'!AC65","v":0},{"$f":"'d. henk.tietovarannot'!D65","v":0},{"$f":"'d. henk.tietovarannot'!AE65","v":0},{"$f":"'d. henk.tietovarannot'!AH65","v":0},{"$f":"'d. henk.tietovarannot'!AI65","v":0},{"$f":"f.tietoturva_henk.tietovarannot!J65","v":0}]
[{"$f":"'d. henk.tietovarannot'!B66","v":0},{"$f":"'d. henk.tietovarannot'!U66","v":0},{"$f":"'d. henk.tietovarannot'!W66","v":0},{"$f":"'d. henk.tietovarannot'!X66","v":0},{"$f":"'d. henk.tietovarannot'!Y66","v":0},{"$f":"'d. henk.tietovarannot'!Z66","v":0},{"$f":"'d. henk.tietovarannot'!AA66","v":0},{"$f":"'d. henk.tietovarannot'!AB66","v":0},{"$f":"'d. henk.tietovarannot'!AC66","v":0},{"$f":"'d. henk.tietovarannot'!D66","v":0},{"$f":"'d. henk.tietovarannot'!AE66","v":0},{"$f":"'d. henk.tietovarannot'!AH66","v":0},{"$f":"'d. henk.tietovarannot'!AI66","v":0},{"$f":"f.tietoturva_henk.tietovarannot!J66","v":0}]
[{"$f":"'d. henk.tietovarannot'!B67","v":0},{"$f":"'d. henk.tietovarannot'!U67","v":0},{"$f":"'d. henk.tietovarannot'!W67","v":0},{"$f":"'d. henk.tietovarannot'!X67","v":0},{"$f":"'d. henk.tietovarannot'!Y67","v":0},{"$f":"'d. henk.tietovarannot'!Z67","v":0},{"$f":"'d. henk.tietovarannot'!AA67","v":0},{"$f":"'d. henk.tietovarannot'!AB67","v":0},{"$f":"'d. henk.tietovarannot'!AC67","v":0},{"$f":"'d. henk.tietovarannot'!D67","v":0},{"$f":"'d. henk.tietovarannot'!AE67","v":0},{"$f":"'d. henk.tietovarannot'!AH67","v":0},{"$f":"'d. henk.tietovarannot'!AI67","v":0},{"$f":"f.tietoturva_henk.tietovarannot!J67","v":0}]
[{"$f":"'d. henk.tietovarannot'!B68","v":0},{"$f":"'d. henk.tietovarannot'!U68","v":0},{"$f":"'d. henk.tietovarannot'!W68","v":0},{"$f":"'d. henk.tietovarannot'!X68","v":0},{"$f":"'d. henk.tietovarannot'!Y68","v":0},{"$f":"'d. henk.tietovarannot'!Z68","v":0},{"$f":"'d. henk.tietovarannot'!AA68","v":0},{"$f":"'d. henk.tietovarannot'!AB68","v":0},{"$f":"'d. henk.tietovarannot'!AC68","v":0},{"$f":"'d. henk.tietovarannot'!D68","v":0},{"$f":"'d. henk.tietovarannot'!AE68","v":0},{"$f":"'d. henk.tietovarannot'!AH68","v":0},{"$f":"'d. henk.tietovarannot'!AI68","v":0},{"$f":"f.tietoturva_henk.tietovarannot!J68","v":0}]
[{"$f":"'d. henk.tietovarannot'!B69","v":0},{"$f":"'d. henk.tietovarannot'!U69","v":0},{"$f":"'d. henk.tietovarannot'!W69","v":0},{"$f":"'d. henk.tietovarannot'!X69","v":0},{"$f":"'d. henk.tietovarannot'!Y69","v":0},{"$f":"'d. henk.tietovarannot'!Z69","v":0},{"$f":"'d. henk.tietovarannot'!AA69","v":0},{"$f":"'d. henk.tietovarannot'!AB69","v":0},{"$f":"'d. henk.tietovarannot'!AC69","v":0},{"$f":"'d. henk.tietovarannot'!D69","v":0},{"$f":"'d. henk.tietovarannot'!AE69","v":0},{"$f":"'d. henk.tietovarannot'!AH69","v":0},{"$f":"'d. henk.tietovarannot'!AI69","v":0},{"$f":"f.tietoturva_henk.tietovarannot!J69","v":0}]
[{"$f":"'d. henk.tietovarannot'!B70","v":0},{"$f":"'d. henk.tietovarannot'!U70","v":0},{"$f":"'d. henk.tietovarannot'!W70","v":0},{"$f":"'d. henk.tietovarannot'!X70","v":0},{"$f":"'d. henk.tietovarannot'!Y70","v":0},{"$f":"'d. henk.tietovarannot'!Z70","v":0},{"$f":"'d. henk.tietovarannot'!AA70","v":0},{"$f":"'d. henk.tietovarannot'!AB70","v":0},{"$f":"'d. henk.tietovarannot'!AC70","v":0},{"$f":"'d. henk.tietovarannot'!D70","v":0},{"$f":"'d. henk.tietovarannot'!AE70","v":0},{"$f":"'d. henk.tietovarannot'!AH70","v":0},{"$f":"'d. henk.tietovarannot'!AI70","v":0},{"$f":"f.tietoturva_henk.tietovarannot!J70","v":0}]
[{"$f":"'d. henk.tietovarannot'!B71","v":0},{"$f":"'d. henk.tietovarannot'!U71","v":0},{"$f":"'d. henk.tietovarannot'!W71","v":0},{"$f":"'d. henk.tietovarannot'!X71","v":0},{"$f":"'d. henk.tietovarannot'!Y71","v":0},{"$f":"'d. henk.tietovarannot'!Z71","v":0},{"$f":"'d. henk.tietovarannot'!AA71","v":0},{"$f":"'d. henk.tietovarannot'!AB71","v":0},{"$f":"'d. henk.tietovarannot'!AC71","v":0},{"$f":"'d. henk.tietovarannot'!D71","v":0},{"$f":"'d. henk.tietovarannot'!AE71","v":0},{"$f":"'d. henk.tietovarannot'!AH71","v":0},{"$f":"'d. henk.tietovarannot'!AI71","v":0},{"$f":"f.tietoturva_henk.tietovarannot!J71","v":0}]
[{"$f":"'d. henk.tietovarannot'!B72","v":0},{"$f":"'d. henk.tietovarannot'!U72","v":0},{"$f":"'d. henk.tietovarannot'!W72","v":0},{"$f":"'d. henk.tietovarannot'!X72","v":0},{"$f":"'d. henk.tietovarannot'!Y72","v":0},{"$f":"'d. henk.tietovarannot'!Z72","v":0},{"$f":"'d. henk.tietovarannot'!AA72","v":0},{"$f":"'d. henk.tietovarannot'!AB72","v":0},{"$f":"'d. henk.tietovarannot'!AC72","v":0},{"$f":"'d. henk.tietovarannot'!D72","v":0},{"$f":"'d. henk.tietovarannot'!AE72","v":0},{"$f":"'d. henk.tietovarannot'!AH72","v":0},{"$f":"'d. henk.tietovarannot'!AI72","v":0},{"$f":"f.tietoturva_henk.tietovarannot!J72","v":0}]
[{"$f":"'d. henk.tietovarannot'!B73","v":0},{"$f":"'d. henk.tietovarannot'!U73","v":0},{"$f":"'d. henk.tietovarannot'!W73","v":0},{"$f":"'d. henk.tietovarannot'!X73","v":0},{"$f":"'d. henk.tietovarannot'!Y73","v":0},{"$f":"'d. henk.tietovarannot'!Z73","v":0},{"$f":"'d. henk.tietovarannot'!AA73","v":0},{"$f":"'d. henk.tietovarannot'!AB73","v":0},{"$f":"'d. henk.tietovarannot'!AC73","v":0},{"$f":"'d. henk.tietovarannot'!D73","v":0},{"$f":"'d. henk.tietovarannot'!AE73","v":0},{"$f":"'d. henk.tietovarannot'!AH73","v":0},{"$f":"'d. henk.tietovarannot'!AI73","v":0},{"$f":"f.tietoturva_henk.tietovarannot!J73","v":0}]
[{"$f":"'d. henk.tietovarannot'!B74","v":0},{"$f":"'d. henk.tietovarannot'!U74","v":0},{"$f":"'d. henk.tietovarannot'!W74","v":0},{"$f":"'d. henk.tietovarannot'!X74","v":0},{"$f":"'d. henk.tietovarannot'!Y74","v":0},{"$f":"'d. henk.tietovarannot'!Z74","v":0},{"$f":"'d. henk.tietovarannot'!AA74","v":0},{"$f":"'d. henk.tietovarannot'!AB74","v":0},{"$f":"'d. henk.tietovarannot'!AC74","v":0},{"$f":"'d. henk.tietovarannot'!D74","v":0},{"$f":"'d. henk.tietovarannot'!AE74","v":0},{"$f":"'d. henk.tietovarannot'!AH74","v":0},{"$f":"'d. henk.tietovarannot'!AI74","v":0},{"$f":"f.tietoturva_henk.tietovarannot!J74","v":0}]
[{"$f":"'d. henk.tietovarannot'!B75","v":0},{"$f":"'d. henk.tietovarannot'!U75","v":0},{"$f":"'d. henk.tietovarannot'!W75","v":0},{"$f":"'d. henk.tietovarannot'!X75","v":0},{"$f":"'d. henk.tietovarannot'!Y75","v":0},{"$f":"'d. henk.tietovarannot'!Z75","v":0},{"$f":"'d. henk.tietovarannot'!AA75","v":0},{"$f":"'d. henk.tietovarannot'!AB75","v":0},{"$f":"'d. henk.tietovarannot'!AC75","v":0},{"$f":"'d. henk.tietovarannot'!D75","v":0},{"$f":"'d. henk.tietovarannot'!AE75","v":0},{"$f":"'d. henk.tietovarannot'!AH75","v":0},{"$f":"'d. henk.tietovarannot'!AI75","v":0},{"$f":"f.tietoturva_henk.tietovarannot!J75","v":0}]
[{"$f":"'d. henk.tietovarannot'!B76","v":0},{"$f":"'d. henk.tietovarannot'!U76","v":0},{"$f":"'d. henk.tietovarannot'!W76","v":0},{"$f":"'d. henk.tietovarannot'!X76","v":0},{"$f":"'d. henk.tietovarannot'!Y76","v":0},{"$f":"'d. henk.tietovarannot'!Z76","v":0},{"$f":"'d. henk.tietovarannot'!AA76","v":0},{"$f":"'d. henk.tietovarannot'!AB76","v":0},{"$f":"'d. henk.tietovarannot'!AC76","v":0},{"$f":"'d. henk.tietovarannot'!D76","v":0},{"$f":"'d. henk.tietovarannot'!AE76","v":0},{"$f":"'d. henk.tietovarannot'!AH76","v":0},{"$f":"'d. henk.tietovarannot'!AI76","v":0},{"$f":"f.tietoturva_henk.tietovarannot!J76","v":0}]
[{"$f":"'d. henk.tietovarannot'!B77","v":0},{"$f":"'d. henk.tietovarannot'!U77","v":0},{"$f":"'d. henk.tietovarannot'!W77","v":0},{"$f":"'d. henk.tietovarannot'!X77","v":0},{"$f":"'d. henk.tietovarannot'!Y77","v":0},{"$f":"'d. henk.tietovarannot'!Z77","v":0},{"$f":"'d. henk.tietovarannot'!AA77","v":0},{"$f":"'d. henk.tietovarannot'!AB77","v":0},{"$f":"'d. henk.tietovarannot'!AC77","v":0},{"$f":"'d. henk.tietovarannot'!D77","v":0},{"$f":"'d. henk.tietovarannot'!AE77","v":0},{"$f":"'d. henk.tietovarannot'!AH77","v":0},{"$f":"'d. henk.tietovarannot'!AI77","v":0},{"$f":"f.tietoturva_henk.tietovarannot!J77","v":0}]
[{"$f":"'d. henk.tietovarannot'!B78","v":0},{"$f":"'d. henk.tietovarannot'!U78","v":0},{"$f":"'d. henk.tietovarannot'!W78","v":0},{"$f":"'d. henk.tietovarannot'!X78","v":0},{"$f":"'d. henk.tietovarannot'!Y78","v":0},{"$f":"'d. henk.tietovarannot'!Z78","v":0},{"$f":"'d. henk.tietovarannot'!AA78","v":0},{"$f":"'d. henk.tietovarannot'!AB78","v":0},{"$f":"'d. henk.tietovarannot'!AC78","v":0},{"$f":"'d. henk.tietovarannot'!D78","v":0},{"$f":"'d. henk.tietovarannot'!AE78","v":0},{"$f":"'d. henk.tietovarannot'!AH78","v":0},{"$f":"'d. henk.tietovarannot'!AI78","v":0},{"$f":"f.tietoturva_henk.tietovarannot!J78","v":0}]
[{"$f":"'d. henk.tietovarannot'!B79","v":0},{"$f":"'d. henk.tietovarannot'!U79","v":0},{"$f":"'d. henk.tietovarannot'!W79","v":0},{"$f":"'d. henk.tietovarannot'!X79","v":0},{"$f":"'d. henk.tietovarannot'!Y79","v":0},{"$f":"'d. henk.tietovarannot'!Z79","v":0},{"$f":"'d. henk.tietovarannot'!AA79","v":0},{"$f":"'d. henk.tietovarannot'!AB79","v":0},{"$f":"'d. henk.tietovarannot'!AC79","v":0},{"$f":"'d. henk.tietovarannot'!D79","v":0},{"$f":"'d. henk.tietovarannot'!AE79","v":0},{"$f":"'d. henk.tietovarannot'!AH79","v":0},{"$f":"'d. henk.tietovarannot'!AI79","v":0},{"$f":"f.tietoturva_henk.tietovarannot!J79","v":0}]
[{"$f":"'d. henk.tietovarannot'!B80","v":0},{"$f":"'d. henk.tietovarannot'!U80","v":0},{"$f":"'d. henk.tietovarannot'!W80","v":0},{"$f":"'d. henk.tietovarannot'!X80","v":0},{"$f":"'d. henk.tietovarannot'!Y80","v":0},{"$f":"'d. henk.tietovarannot'!Z80","v":0},{"$f":"'d. henk.tietovarannot'!AA80","v":0},{"$f":"'d. henk.tietovarannot'!AB80","v":0},{"$f":"'d. henk.tietovarannot'!AC80","v":0},{"$f":"'d. henk.tietovarannot'!D80","v":0},{"$f":"'d. henk.tietovarannot'!AE80","v":0},{"$f":"'d. henk.tietovarannot'!AH80","v":0},{"$f":"'d. henk.tietovarannot'!AI80","v":0},{"$f":"f.tietoturva_henk.tietovarannot!J80","v":0}]
[{"$f":"'d. henk.tietovarannot'!B81","v":0},{"$f":"'d. henk.tietovarannot'!U81","v":0},{"$f":"'d. henk.tietovarannot'!W81","v":0},{"$f":"'d. henk.tietovarannot'!X81","v":0},{"$f":"'d. henk.tietovarannot'!Y81","v":0},{"$f":"'d. henk.tietovarannot'!Z81","v":0},{"$f":"'d. henk.tietovarannot'!AA81","v":0},{"$f":"'d. henk.tietovarannot'!AB81","v":0},{"$f":"'d. henk.tietovarannot'!AC81","v":0},{"$f":"'d. henk.tietovarannot'!D81","v":0},{"$f":"'d. henk.tietovarannot'!AE81","v":0},{"$f":"'d. henk.tietovarannot'!AH81","v":0},{"$f":"'d. henk.tietovarannot'!AI81","v":0},{"$f":"f.tietoturva_henk.tietovarannot!J81","v":0}]
[{"$f":"'d. henk.tietovarannot'!B82","v":0},{"$f":"'d. henk.tietovarannot'!U82","v":0},{"$f":"'d. henk.tietovarannot'!W82","v":0},{"$f":"'d. henk.tietovarannot'!X82","v":0},{"$f":"'d. henk.tietovarannot'!Y82","v":0},{"$f":"'d. henk.tietovarannot'!Z82","v":0},{"$f":"'d. henk.tietovarannot'!AA82","v":0},{"$f":"'d. henk.tietovarannot'!AB82","v":0},{"$f":"'d. henk.tietovarannot'!AC82","v":0},{"$f":"'d. henk.tietovarannot'!D82","v":0},{"$f":"'d. henk.tietovarannot'!AE82","v":0},{"$f":"'d. henk.tietovarannot'!AH82","v":0},{"$f":"'d. henk.tietovarannot'!AI82","v":0},{"$f":"f.tietoturva_henk.tietovarannot!J82","v":0}]
[{"$f":"'d. henk.tietovarannot'!B83","v":0},{"$f":"'d. henk.tietovarannot'!U83","v":0},{"$f":"'d. henk.tietovarannot'!W83","v":0},{"$f":"'d. henk.tietovarannot'!X83","v":0},{"$f":"'d. henk.tietovarannot'!Y83","v":0},{"$f":"'d. henk.tietovarannot'!Z83","v":0},{"$f":"'d. henk.tietovarannot'!AA83","v":0},{"$f":"'d. henk.tietovarannot'!AB83","v":0},{"$f":"'d. henk.tietovarannot'!AC83","v":0},{"$f":"'d. henk.tietovarannot'!D83","v":0},{"$f":"'d. henk.tietovarannot'!AE83","v":0},{"$f":"'d. henk.tietovarannot'!AH83","v":0},{"$f":"'d. henk.tietovarannot'!AI83","v":0},{"$f":"f.tietoturva_henk.tietovarannot!J83","v":0}]
[{"$f":"'d. henk.tietovarannot'!B84","v":0},{"$f":"'d. henk.tietovarannot'!U84","v":0},{"$f":"'d. henk.tietovarannot'!W84","v":0},{"$f":"'d. henk.tietovarannot'!X84","v":0},{"$f":"'d. henk.tietovarannot'!Y84","v":0},{"$f":"'d. henk.tietovarannot'!Z84","v":0},{"$f":"'d. henk.tietovarannot'!AA84","v":0},{"$f":"'d. henk.tietovarannot'!AB84","v":0},{"$f":"'d. henk.tietovarannot'!AC84","v":0},{"$f":"'d. henk.tietovarannot'!D84","v":0},{"$f":"'d. henk.tietovarannot'!AE84","v":0},{"$f":"'d. henk.tietovarannot'!AH84","v":0},{"$f":"'d. henk.tietovarannot'!AI84","v":0},{"$f":"f.tietoturva_henk.tietovarannot!J84","v":0}]
[{"$f":"'d. henk.tietovarannot'!B85","v":0},{"$f":"'d. henk.tietovarannot'!U85","v":0},{"$f":"'d. henk.tietovarannot'!W85","v":0},{"$f":"'d. henk.tietovarannot'!X85","v":0},{"$f":"'d. henk.tietovarannot'!Y85","v":0},{"$f":"'d. henk.tietovarannot'!Z85","v":0},{"$f":"'d. henk.tietovarannot'!AA85","v":0},{"$f":"'d. henk.tietovarannot'!AB85","v":0},{"$f":"'d. henk.tietovarannot'!AC85","v":0},{"$f":"'d. henk.tietovarannot'!D85","v":0},{"$f":"'d. henk.tietovarannot'!AE85","v":0},{"$f":"'d. henk.tietovarannot'!AH85","v":0},{"$f":"'d. henk.tietovarannot'!AI85","v":0},{"$f":"f.tietoturva_henk.tietovarannot!J85","v":0}]
[{"$f":"'d. henk.tietovarannot'!B86","v":0},{"$f":"'d. henk.tietovarannot'!U86","v":0},{"$f":"'d. henk.tietovarannot'!W86","v":0},{"$f":"'d. henk.tietovarannot'!X86","v":0},{"$f":"'d. henk.tietovarannot'!Y86","v":0},{"$f":"'d. henk.tietovarannot'!Z86","v":0},{"$f":"'d. henk.tietovarannot'!AA86","v":0},{"$f":"'d. henk.tietovarannot'!AB86","v":0},{"$f":"'d. henk.tietovarannot'!AC86","v":0},{"$f":"'d. henk.tietovarannot'!D86","v":0},{"$f":"'d. henk.tietovarannot'!AE86","v":0},{"$f":"'d. henk.tietovarannot'!AH86","v":0},{"$f":"'d. henk.tietovarannot'!AI86","v":0},{"$f":"f.tietoturva_henk.tietovarannot!J86","v":0}]
[{"$f":"'d. henk.tietovarannot'!B87","v":0},{"$f":"'d. henk.tietovarannot'!U87","v":0},{"$f":"'d. henk.tietovarannot'!W87","v":0},{"$f":"'d. henk.tietovarannot'!X87","v":0},{"$f":"'d. henk.tietovarannot'!Y87","v":0},{"$f":"'d. henk.tietovarannot'!Z87","v":0},{"$f":"'d. henk.tietovarannot'!AA87","v":0},{"$f":"'d. henk.tietovarannot'!AB87","v":0},{"$f":"'d. henk.tietovarannot'!AC87","v":0},{"$f":"'d. henk.tietovarannot'!D87","v":0},{"$f":"'d. henk.tietovarannot'!AE87","v":0},{"$f":"'d. henk.tietovarannot'!AH87","v":0},{"$f":"'d. henk.tietovarannot'!AI87","v":0},{"$f":"f.tietoturva_henk.tietovarannot!J87","v":0}]
[{"$f":"'d. henk.tietovarannot'!B88","v":0},{"$f":"'d. henk.tietovarannot'!U88","v":0},{"$f":"'d. henk.tietovarannot'!W88","v":0},{"$f":"'d. henk.tietovarannot'!X88","v":0},{"$f":"'d. henk.tietovarannot'!Y88","v":0},{"$f":"'d. henk.tietovarannot'!Z88","v":0},{"$f":"'d. henk.tietovarannot'!AA88","v":0},{"$f":"'d. henk.tietovarannot'!AB88","v":0},{"$f":"'d. henk.tietovarannot'!AC88","v":0},{"$f":"'d. henk.tietovarannot'!D88","v":0},{"$f":"'d. henk.tietovarannot'!AE88","v":0},{"$f":"'d. henk.tietovarannot'!AH88","v":0},{"$f":"'d. henk.tietovarannot'!AI88","v":0},{"$f":"f.tietoturva_henk.tietovarannot!J88","v":0}]

{"sheet":"3. Tiedonhallinnan vastuut","index":9,"n_rows":40,"n_cols":12,"rows_kept":40,"cut":false,"hidden":false,"merged":[]}
[]
[]
[]
[]
[]
[null,"Toimintaprosessi","Vastuu-viranomainen",null,"Henkilötietoja sisältävä tietovaranto","Rekisterinpitäjä",null,"Tietovaranto","Vastuuviranomainen",null,"Tietojärjestelmät","Vastuu-viranomainen"]
[null,{"$f":"'a. toimintaprosessit'!B4","v":0},{"$f":"'a. toimintaprosessit'!C4","v":0},null,{"$f":"'d. henk.tietovarannot'!B4","v":0},{"$f":"'d. henk.tietovarannot'!U4","v":0},null,{"$f":"'c. tietovarannot'!B4","v":0},{"$f":"'c. tietovarannot'!C4","v":0},null,{"$f":"'b. tietojärjestelmät'!B5","v":0},{"$f":"'b. tietojärjestelmät'!C5","v":0}]
[null,{"$f":"'a. toimintaprosessit'!B5","v":0},{"$f":"'a. toimintaprosessit'!C5","v":0},null,{"$f":"'d. henk.tietovarannot'!B5","v":0},{"$f":"'d. henk.tietovarannot'!U5","v":0},null,{"$f":"'c. tietovarannot'!B5","v":0},{"$f":"'c. tietovarannot'!C5","v":0},null,{"$f":"'b. tietojärjestelmät'!B6","v":0},{"$f":"'b. tietojärjestelmät'!C6","v":0}]
[null,{"$f":"'a. toimintaprosessit'!B6","v":0},{"$f":"'a. toimintaprosessit'!C6","v":0},null,{"$f":"'d. henk.tietovarannot'!B6","v":0},{"$f":"'d. henk.tietovarannot'!U6","v":0},null,{"$f":"'c. tietovarannot'!B6","v":0},{"$f":"'c. tietovarannot'!C6","v":0},null,{"$f":"'b. tietojärjestelmät'!B7","v":0},{"$f":"'b. tietojärjestelmät'!C7","v":0}]
[null,{"$f":"'a. toimintaprosessit'!B7","v":0},{"$f":"'a. toimintaprosessit'!C7","v":0},null,{"$f":"'d. henk.tietovarannot'!B7","v":0},{"$f":"'d. henk.tietovarannot'!U7","v":0},null,{"$f":"'c. tietovarannot'!B7","v":0},{"$f":"'c. tietovarannot'!C7","v":0},null,{"$f":"'b. tietojärjestelmät'!B8","v":0},{"$f":"'b. tietojärjestelmät'!C8","v":0}]
[null,{"$f":"'a. toimintaprosessit'!B8","v":0},{"$f":"'a. toimintaprosessit'!C8","v":0},null,{"$f":"'d. henk.tietovarannot'!B8","v":0},{"$f":"'d. henk.tietovarannot'!U8","v":0},null,{"$f":"'c. tietovarannot'!B8","v":0},{"$f":"'c. tietovarannot'!C8","v":0},null,{"$f":"'b. tietojärjestelmät'!B9","v":0},{"$f":"'b. tietojärjestelmät'!C9","v":0}]
[null,{"$f":"'a. toimintaprosessit'!B9","v":0},{"$f":"'a. toimintaprosessit'!C9","v":0},null,{"$f":"'d. henk.tietovarannot'!B9","v":0},{"$f":"'d. henk.tietovarannot'!U9","v":0},null,{"$f":"'c. tietovarannot'!B9","v":0},{"$f":"'c. tietovarannot'!C9","v":0},null,{"$f":"'b. tietojärjestelmät'!B10","v":0},{"$f":"'b. tietojärjestelmät'!C10","v":0}]
[null,{"$f":"'a. toimintaprosessit'!B10","v":0},{"$f":"'a. toimintaprosessit'!C10","v":0},null,{"$f":"'d. henk.tietovarannot'!B10","v":0},{"$f":"'d. henk.tietovarannot'!U10","v":0},null,{"$f":"'c. tietovarannot'!B10","v":0},{"$f":"'c. tietovarannot'!C10","v":0},null,{"$f":"'b. tietojärjestelmät'!B11","v":" "},{"$f":"'b. tietojärjestelmät'!C11","v":0}]
[null,{"$f":"'a. toimintaprosessit'!B11","v":0},{"$f":"'a. toimintaprosessit'!C11","v":0},null,{"$f":"'d. henk.tietovarannot'!B11","v":0},{"$f":"'d. henk.tietovarannot'!U11","v":0},null,{"$f":"'c. tietovarannot'!B11","v":0},{"$f":"'c. tietovarannot'!C11","v":0},null,{"$f":"'b. tietojärjestelmät'!B12","v":" "},{"$f":"'b. tietojärjestelmät'!C12","v":0}]
[null,{"$f":"'a. toimintaprosessit'!B12","v":0},{"$f":"'a. toimintaprosessit'!C12","v":0},null,{"$f":"'d. henk.tietovarannot'!B12","v":0},{"$f":"'d. henk.tietovarannot'!U12","v":0},null,{"$f":"'c. tietovarannot'!B12","v":0},{"$f":"'c. tietovarannot'!C12","v":0},null,{"$f":"'b. tietojärjestelmät'!B13","v":" "},{"$f":"'b. tietojärjestelmät'!C13","v":" "}]
[null,{"$f":"'a. toimintaprosessit'!B13","v":0},{"$f":"'a. toimintaprosessit'!C13","v":0},null,{"$f":"'d. henk.tietovarannot'!B13","v":0},{"$f":"'d. henk.tietovarannot'!U13","v":0},null,{"$f":"'c. tietovarannot'!B13","v":0},{"$f":"'c. tietovarannot'!C13","v":0},null,{"$f":"'b. tietojärjestelmät'!B14","v":" "},{"$f":"'b. tietojärjestelmät'!C14","v":" "}]
[null,{"$f":"'a. toimintaprosessit'!B14","v":" "},{"$f":"'a. toimintaprosessit'!C14","v":" "},null,{"$f":"'d. henk.tietovarannot'!B14","v":0},{"$f":"'d. henk.tietovarannot'!U14","v":0},null,{"$f":"'c. tietovarannot'!B14","v":0},{"$f":"'c. tietovarannot'!C14","v":0},null,{"$f":"'b. tietojärjestelmät'!B15","v":" "},{"$f":"'b. tietojärjestelmät'!C15","v":" "}]
[null,{"$f":"'a. toimintaprosessit'!B15","v":" "},{"$f":"'a. toimintaprosessit'!C15","v":" "},null,{"$f":"'d. henk.tietovarannot'!B15","v":0},{"$f":"'d. henk.tietovarannot'!U15","v":0},null,{"$f":"'c. tietovarannot'!B15","v":0},{"$f":"'c. tietovarannot'!C15","v":0},null,{"$f":"'b. tietojärjestelmät'!B16","v":" "},{"$f":"'b. tietojärjestelmät'!C16","v":" "}]
[null,{"$f":"'a. toimintaprosessit'!B16","v":" "},{"$f":"'a. toimintaprosessit'!C16","v":" "},null,{"$f":"'d. henk.tietovarannot'!B16","v":0},{"$f":"'d. henk.tietovarannot'!U16","v":0},null,{"$f":"'c. tietovarannot'!B16","v":0},{"$f":"'c. tietovarannot'!C16","v":" "},null,{"$f":"'b. tietojärjestelmät'!B17","v":" "},{"$f":"'b. tietojärjestelmät'!C17","v":" "}]
[null,{"$f":"'a. toimintaprosessit'!B17","v":" "},{"$f":"'a. toimintaprosessit'!C17","v":" "},null,{"$f":"'d. henk.tietovarannot'!B17","v":0},{"$f":"'d. henk.tietovarannot'!U17","v":0},null,{"$f":"'c. tietovarannot'!B17","v":0},{"$f":"'c. tietovarannot'!C17","v":" "},null,{"$f":"'b. tietojärjestelmät'!B18","v":" "},{"$f":"'b. tietojärjestelmät'!C18","v":" "}]
[null,{"$f":"'a. toimintaprosessit'!B18","v":" "},{"$f":"'a. toimintaprosessit'!C18","v":" "},null,{"$f":"'d. henk.tietovarannot'!B18","v":0},{"$f":"'d. henk.tietovarannot'!U18","v":0},null,{"$f":"'c. tietovarannot'!B18","v":0},{"$f":"'c. tietovarannot'!C18","v":" "},null,{"$f":"'b. tietojärjestelmät'!B19","v":" "},{"$f":"'b. tietojärjestelmät'!C19","v":" "}]
[null,{"$f":"'a. toimintaprosessit'!B19","v":" "},{"$f":"'a. toimintaprosessit'!C19","v":" "},null,{"$f":"'d. henk.tietovarannot'!B19","v":0},{"$f":"'d. henk.tietovarannot'!U19","v":0},null,{"$f":"'c. tietovarannot'!B19","v":0},{"$f":"'c. tietovarannot'!C19","v":" "},null,{"$f":"'b. tietojärjestelmät'!B20","v":" "},{"$f":"'b. tietojärjestelmät'!C20","v":" "}]
[null,{"$f":"'a. toimintaprosessit'!B20","v":" "},{"$f":"'a. toimintaprosessit'!C20","v":" "},null,{"$f":"'d. henk.tietovarannot'!B20","v":0},{"$f":"'d. henk.tietovarannot'!U20","v":0},null,{"$f":"'c. tietovarannot'!B20","v":0},{"$f":"'c. tietovarannot'!C20","v":" "},null,{"$f":"'b. tietojärjestelmät'!B21","v":" "},{"$f":"'b. tietojärjestelmät'!C21","v":" "}]
[null,{"$f":"'a. toimintaprosessit'!B21","v":" "},{"$f":"'a. toimintaprosessit'!C21","v":" "},null,{"$f":"'d. henk.tietovarannot'!B21","v":0},{"$f":"'d. henk.tietovarannot'!U21","v":0},null,{"$f":"'c. tietovarannot'!B21","v":0},{"$f":"'c. tietovarannot'!C21","v":" "},null,{"$f":"'b. tietojärjestelmät'!B22","v":" "},{"$f":"'b. tietojärjestelmät'!C22","v":" "}]
[null,{"$f":"'a. toimintaprosessit'!B22","v":" "},{"$f":"'a. toimintaprosessit'!C22","v":" "},null,{"$f":"'d. henk.tietovarannot'!B22","v":0},{"$f":"'d. henk.tietovarannot'!U22","v":0},null,{"$f":"'c. tietovarannot'!B22","v":0},{"$f":"'c. tietovarannot'!C22","v":" "},null,{"$f":"'b. tietojärjestelmät'!B23","v":" "},{"$f":"'b. tietojärjestelmät'!C23","v":" "}]
[null,{"$f":"'a. toimintaprosessit'!B23","v":" "},{"$f":"'a. toimintaprosessit'!C23","v":" "},null,{"$f":"'d. henk.tietovarannot'!B23","v":0},{"$f":"'d. henk.tietovarannot'!U23","v":0},null,{"$f":"'c. tietovarannot'!B23","v":0},{"$f":"'c. tietovarannot'!C23","v":" "},null,{"$f":"'b. tietojärjestelmät'!B24","v":" "},{"$f":"'b. tietojärjestelmät'!C24","v":" "}]
[null,{"$f":"'a. toimintaprosessit'!B24","v":0},{"$f":"'a. toimintaprosessit'!C24","v":" "},null,{"$f":"'d. henk.tietovarannot'!B24","v":0},{"$f":"'d. henk.tietovarannot'!U24","v":0},null,{"$f":"'c. tietovarannot'!B24","v":0},{"$f":"'c. tietovarannot'!C24","v":" "},null,{"$f":"'b. tietojärjestelmät'!B25","v":" "},{"$f":"'b. tietojärjestelmät'!C25","v":" "}]
[null,{"$f":"'a. toimintaprosessit'!B25","v":0},{"$f":"'a. toimintaprosessit'!C25","v":0},null,{"$f":"'d. henk.tietovarannot'!B25","v":0},{"$f":"'d. henk.tietovarannot'!U25","v":0},null,{"$f":"'c. tietovarannot'!B25","v":" "},{"$f":"'c. tietovarannot'!C25","v":" "},null,{"$f":"'b. tietojärjestelmät'!B26","v":0},{"$f":"'b. tietojärjestelmät'!C26","v":0}]
[null,{"$f":"'a. toimintaprosessit'!B26","v":0},{"$f":"'a. toimintaprosessit'!C26","v":0},null,{"$f":"'d. henk.tietovarannot'!B26","v":0},{"$f":"'d. henk.tietovarannot'!U26","v":0},null,{"$f":"'c. tietovarannot'!B26","v":" "},{"$f":"'c. tietovarannot'!C26","v":" "},null,{"$f":"'b. tietojärjestelmät'!B27","v":0},{"$f":"'b. tietojärjestelmät'!C27","v":0}]
[null,{"$f":"'a. toimintaprosessit'!B27","v":0},{"$f":"'a. toimintaprosessit'!C27","v":0},null,{"$f":"'d. henk.tietovarannot'!B27","v":0},{"$f":"'d. henk.tietovarannot'!U27","v":0},null,{"$f":"'c. tietovarannot'!B27","v":" "},{"$f":"'c. tietovarannot'!C27","v":" "},null,{"$f":"'b. tietojärjestelmät'!B28","v":0},{"$f":"'b. tietojärjestelmät'!C28","v":0}]
[null,{"$f":"'a. toimintaprosessit'!B28","v":0},{"$f":"'a. toimintaprosessit'!C28","v":0},null,{"$f":"'d. henk.tietovarannot'!B28","v":0},{"$f":"'d. henk.tietovarannot'!U28","v":0},null,{"$f":"'c. tietovarannot'!B28","v":" "},{"$f":"'c. tietovarannot'!C28","v":" "},null,{"$f":"'b. tietojärjestelmät'!B29","v":0},{"$f":"'b. tietojärjestelmät'!C29","v":0}]
[null,{"$f":"'a. toimintaprosessit'!B29","v":0},{"$f":"'a. toimintaprosessit'!C29","v":0},null,{"$f":"'d. henk.tietovarannot'!B29","v":0},{"$f":"'d. henk.tietovarannot'!U29","v":0},null,{"$f":"'c. tietovarannot'!B29","v":" "},{"$f":"'c. tietovarannot'!C29","v":" "},null,{"$f":"'b. tietojärjestelmät'!B30","v":0},{"$f":"'b. tietojärjestelmät'!C30","v":0}]
[null,{"$f":"'a. toimintaprosessit'!B30","v":0},{"$f":"'a. toimintaprosessit'!C30","v":0},null,{"$f":"'d. henk.tietovarannot'!B30","v":" "},{"$f":"'d. henk.tietovarannot'!U30","v":0},null,{"$f":"'c. tietovarannot'!B30","v":" "},{"$f":"'c. tietovarannot'!C30","v":" "},null,{"$f":"'b. tietojärjestelmät'!B31","v":0},{"$f":"'b. tietojärjestelmät'!C31","v":0}]
[null,{"$f":"'a. toimintaprosessit'!B31","v":0},{"$f":"'a. toimintaprosessit'!C31","v":0},null,{"$f":"'d. henk.tietovarannot'!B31","v":" "},{"$f":"'d. henk.tietovarannot'!U31","v":0},null,{"$f":"'c. tietovarannot'!B31","v":" "},{"$f":"'c. tietovarannot'!C31","v":" "},null,{"$f":"'b. tietojärjestelmät'!B32","v":0},{"$f":"'b. tietojärjestelmät'!C32","v":0}]
[null,{"$f":"'a. toimintaprosessit'!B32","v":0},{"$f":"'a. toimintaprosessit'!C32","v":0},null,{"$f":"'d. henk.tietovarannot'!B32","v":" "},{"$f":"'d. henk.tietovarannot'!U32","v":0},null,{"$f":"'c. tietovarannot'!B32","v":" "},{"$f":"'c. tietovarannot'!C32","v":" "},null,{"$f":"'b. tietojärjestelmät'!B33","v":0},{"$f":"'b. tietojärjestelmät'!C33","v":0}]
[null,{"$f":"'a. toimintaprosessit'!B33","v":0},{"$f":"'a. toimintaprosessit'!C33","v":0},null,{"$f":"'d. henk.tietovarannot'!B33","v":" "},{"$f":"'d. henk.tietovarannot'!U33","v":0},null,{"$f":"'c. tietovarannot'!B33","v":" "},{"$f":"'c. tietovarannot'!C33","v":" "},null,{"$f":"'b. tietojärjestelmät'!B34","v":0},{"$f":"'b. tietojärjestelmät'!C34","v":0}]
[null,{"$f":"'a. toimintaprosessit'!B34","v":0},{"$f":"'a. toimintaprosessit'!C34","v":0},null,{"$f":"'d. henk.tietovarannot'!B34","v":" "},{"$f":"'d. henk.tietovarannot'!U34","v":0},null,{"$f":"'c. tietovarannot'!B34","v":" "},{"$f":"'c. tietovarannot'!C34","v":" "},null,{"$f":"'b. tietojärjestelmät'!B35","v":0},{"$f":"'b. tietojärjestelmät'!C35","v":0}]
[null,{"$f":"'a. toimintaprosessit'!B35","v":0},{"$f":"'a. toimintaprosessit'!C35","v":0},null,{"$f":"'d. henk.tietovarannot'!B35","v":" "},{"$f":"'d. henk.tietovarannot'!U35","v":0},null,{"$f":"'c. tietovarannot'!B35","v":" "},{"$f":"'c. tietovarannot'!C35","v":" "},null,{"$f":"'b. tietojärjestelmät'!B36","v":0},{"$f":"'b. tietojärjestelmät'!C36","v":0}]
[null,{"$f":"'a. toimintaprosessit'!B36","v":0},{"$f":"'a. toimintaprosessit'!C36","v":0},null,{"$f":"'d. henk.tietovarannot'!B36","v":" "},{"$f":"'d. henk.tietovarannot'!U36","v":0},null,{"$f":"'c. tietovarannot'!B36","v":" "},{"$f":"'c. tietovarannot'!C36","v":" "},null,{"$f":"'b. tietojärjestelmät'!B37","v":0},{"$f":"'b. tietojärjestelmät'!C37","v":0}]
[null,{"$f":"'a. toimintaprosessit'!B37","v":0},{"$f":"'a. toimintaprosessit'!C37","v":0},null,{"$f":"'d. henk.tietovarannot'!B37","v":" "},{"$f":"'d. henk.tietovarannot'!U37","v":0},null,{"$f":"'c. tietovarannot'!B37","v":" "},{"$f":"'c. tietovarannot'!C37","v":" "},null,{"$f":"'b. tietojärjestelmät'!B38","v":0},{"$f":"'b. tietojärjestelmät'!C38","v":0}]

{"sheet":"Data","index":10,"n_rows":20,"n_cols":3,"rows_kept":20,"cut":false,"hidden":false,"merged":[]}
[]
["Välilehden a. toimintaprosessit data",null,"Välilehdet C ja D data"]
[]
["a.4.2 Sidos: prosessiin vai prosessista?",null,"Säilytys, arkistointi ja hävittäminen "]
["←",null,"Säilytystapa \nVälilehti C: Sarake AA\nVälilehti D: Sarake AK"]
["→",null,"Sähköisesti"]
[null,null,"Paperilla"]
[]
[null,null,"Siirretäänkö säilytysajan jälkeen arkistoon?  \nVälilehti C: Sarake AB\nVälilehti D: Sarake AL"]
[null,null,"Kyllä"]
[null,null,"Ei"]
[]
[null,null,"Arkistointitapa \nVälilehti C: Sarake AC\nVälilehti D: Sarake AM"]
[null,null,"Sähköisesti"]
[null,null,"Paperilla"]
[]
[null,null,"Millä tavoin hävitetään, mikäli ei arkistoida pysyvästi? \nVälilehti C: Sarake AD\nVälilehti D: Sarake AN"]
[null,null,"Ylikirjoitetaan"]
[null,null,"Silputaan"]
[null,null,"Muulla tavoin tietoturvallisesti"]